Cogmind - Beta 12 --- EXPLORER MODE // 2023.06.17 @ 02:24:11 Player: snowphil Result: Destroyed Tau Ceti IV! Performance ------------- Evolutions (9) 4500 Regions Visited (32) 6400 Robots Destroyed (781) 3905 Value Destroyed (43628) 43628 Prototype IDs (307) 6140 Alien Tech Used (14) 2800 Bonus (56973) 56973 TOTAL SCORE: 124346 Bonus ------- Triggered Max Security 1000 High Alert Combat Kills 4962 Follower Combat Kills 1796 Entered Garrisons 1400 Used RIF Installer 4500 Entered DSFs 500 Aligned with FarCom 300 Used Core Reset Matrix 3000 Scanned by Researcher 500 Integrated Exoskeleton 5000 Destroyed MAIN.C Guards 500 Met MAIN.C 5000 Destroyed MAIN.C Shell 5000 Destroyed MAIN.C 10000 Met Architect 300 Started Test 138-B 500 Started Test 138-C 8000 Destroyed A8 300 Destroyed A6 400 Destroyed A5 500 Destroyed A2 1000 Win 3000 Friendly Fire -485 Cogmind --------- Core Integrity 1062/1600 Matter 261/300 Energy 242/250 System Corruption 0% Temperature Cool (0) Movement Walking (30) Location Subspace Parts ------- > --- POWER (1) -------- Micro Antimatter Reactor > --- PROPULSION (3) --- Sigix Exoskeleton > --- UTILITY (5) ------ Large Storage Unit Experimental Targeting Computer Advanced Target Analyzer Experimental Armor Integrity Analyzer AEGIS Remote Shield > --- WEAPON (2) ------- Sigix Shearcannon > --- INVENTORY (17) --- Experimental Energy Well (600) Experimental Matter Compressor (500) Advanced Quantum Shading Machine Triangulator Spectral Analyzer Graphene Brace Experimental EM Disruption Field Antimissile System Experimental System Purifier PSU Rigger High-powered Transdimensional Reconstructor Spacefold Activator Enhanced Nova Cannon Improved Potential Cannon Hellfire Missile Launcher Nanosword Peak State ------------ > --- POWER ------------ Zero-point Reactor > --- PROPULSION ------- Sigix Exoskeleton > --- UTILITY ---------- Large Storage Unit Advanced Target Analyzer AEGIS Remote Shield Antimissile System Core Physics Calibrator > --- WEAPON ----------- Sigix Shearcannon > --- INVENTORY -------- Micro Antimatter Reactor Experimental Energy Well Triangulator Graphene Brace Experimental EM Disruption Field PSU Rigger Transdimensional Reconstructor High-powered Transdimensional Reconstructor Spacefold Activator Sigix Sheargun Enhanced Nova Cannon Improved Potential Cannon Hellfire Missile Launcher Nanosword [Rating: 246] Favorites ----------- Power Graviton Reactor Engine Cooled Deuterium Engine Power Core Enhanced Nuclear Core Reactor Graviton Reactor Propulsion Gravmag System Leg Aluminum Leg Hover Unit Gravmag System Flight Unit Improved Diametric Drive Utility Large Storage Unit Device Triangulator Storage Large Storage Unit Processor Experimental Core Analyzer Hackware Improved Hacking Suite Protection Advanced Powered Armor Artifact Core Physics Calibrator Weapon Advanced Remote Datajack Energy Gun EM Pulse Gun Energy Cannon Cooled Plasma Cannon Ballistic Gun Helical Railgun Ballistic Cannon Compact Mass Driver Launcher Grenade Launcher Special Weapon Advanced Remote Datajack Impact Weapon Impact Mace Slashing Weapon Nanosword Piercing Weapon Enhanced Force Lance Special Melee Weapon Datajack Build | -11 -10 -10 -9 -9 -9 -8 -8 -8 -8 -8 -7 -7 -7 -7 -6 -6 -6 -6 -5 -5 -4 -4 -4 -3 -3 -3 -2 -2 -2 -1 -1 -1 ------- Run | Jun Mat Min Mat Min Exi Min Mat Gar Mat Gar Fac Gar Fac DSF Fac Gar Fac Gar Fac Gar Fac Upp Upp Res Tes Gar Res Qua Sec Acc Com Ac0 Slots Evolved 19 | . 1 . 2 . . . 2 . . . 2 . . . 2 . . . 2 . 2 . . 2 . . 2 . . 2 . . Power 1 | . . . . . . . . . . . . . . . 1 . . . . . . . . . . . . . . . . . Propulsion 6 | . . . 2 . . . 1 . . . 1 . . . . . . . 1 . 1 . . . . . . . . . . . Utility 12 | . 1 . . . . . 1 . . . 1 . . . 1 . . . 1 . 1 . . 2 . . 2 . . 2 . . Weapon . | . . . . . . . . . . . . . . . . . . . . . . . . . . . . . . . . . Parts Attached 1434 | . 21 3 40 1 4 7 38 23 25 18 55 12 4 10 127 30 67 18 69 27 78 26 26 185 98 15 83 63 179 25 51 6 Power 81 | . 3 . 4 . . 1 5 5 . 3 2 1 . 3 10 1 1 . 5 . 7 2 . 3 4 . 3 3 11 . 3 1 Engine 23 | . 3 . 3 . . . 2 2 . 1 . . . 1 5 1 1 . 3 . . . . . . . . . 1 . . . Core 22 | . . . 1 . . 1 3 3 . 2 2 1 . 2 5 . . . . . 1 1 . . . . . . . . . . Reactor 36 | . . . . . . . . . . . . . . . . . . . 2 . 6 1 . 3 4 . 3 3 10 . 3 1 Propulsion 185 | . 3 . 18 . . 1 20 8 9 3 14 5 1 4 25 2 4 2 3 1 15 2 5 18 . . 7 5 10 . . . Treads . | . . . . . . . . . . . . . . . . . . . . . . . . . . . . . . . . . Leg 13 | . 3 . 10 . . . . . . . . . . . . . . . . . . . . . . . . . . . . . Wheel . | . . . . . . . . . . . . . . . . . . . . . . . . . . . . . . . . . Hover 165 | . . . 8 . . 1 19 8 9 3 14 4 1 4 21 2 4 2 3 1 14 2 5 18 . . 7 5 10 . . . Flight 7 | . . . . . . . 1 . . . . 1 . . 4 . . . . . 1 . . . . . . . . . . . Utility 733 | . 4 1 4 . 1 . 7 3 11 6 27 3 3 2 55 21 52 12 37 18 40 11 9 112 49 12 48 26 104 17 33 5 Device 588 | . 2 1 2 . . . 5 1 8 4 17 2 . 1 46 14 46 10 33 15 38 11 9 91 39 7 40 20 81 16 25 4 Storage 36 | . . . . . 1 . 1 . 1 . 2 . . . 5 1 3 . 1 . 2 . . 2 . 1 3 2 8 1 2 . Processor 23 | . 1 . 1 . . . . 1 . . . . . . 2 1 2 . 2 1 . . . 1 . . . . 7 . 3 1 Hackware 26 | . . . . . . . . 1 . 2 . 1 2 1 2 4 . 2 . 2 . . . 2 2 2 1 1 . . 1 . Protection 58 | . 1 . 1 . . . 1 . 2 . 8 . 1 . . 1 1 . 1 . . . . 16 8 2 4 3 6 . 2 . Artifact 2 | . . . . . . . . . . . . . . . . . . . . . . . . . . . . . 2 . . . Weapon 435 | . 11 2 14 1 3 5 6 7 5 6 12 3 . 1 37 6 10 4 24 8 16 11 12 52 45 3 25 29 54 8 15 . Energy Gun 38 | . 5 1 6 . . . 1 1 2 . . . . . 5 . . . 6 . 1 . . 1 3 . 1 . 4 . 1 . Energy Cannon 95 | . . . . . . . 5 1 . 2 2 . . . 7 1 5 1 9 2 2 2 1 2 5 1 4 12 17 4 10 . Ballistic Gun 26 | . . . . . . . . . . . . . . . 2 2 . 1 2 1 4 1 4 4 . . . . 4 . 1 . Ballistic Cannon 36 | . 1 . 2 1 . 2 . . . . . . . . 2 . 1 . . . . . 1 11 14 . . . . . 1 . Launcher 53 | . 2 1 1 . . 3 . 2 . 2 4 1 . . 7 2 2 . . 1 1 4 1 7 . . 2 1 7 1 1 . Special Weapon 114 | . 1 . 4 . . . . 3 3 2 5 1 . 1 12 1 1 1 4 2 5 4 3 17 17 1 9 4 11 1 1 . Impact Weapon 12 | . . . 1 . 1 . . . . . 1 1 . . 1 . 1 1 . 1 . . . . . . . 1 3 . . . Slashing Weapon 56 | . 1 . . . 2 . . . . . . . . . . . . . 3 1 3 . 2 8 6 1 9 11 7 2 . . Piercing Weapon 3 | . . . . . . . . . . . . . . . 1 . . . . . . . . 2 . . . . . . . . Special Melee Weapon 2 | . 1 . . . . . . . . . . . . . . . . . . . . . . . . . . . 1 . . . Unidentified Prototypes 116 | . . 1 . . . . 1 . 2 . 5 . . . 23 1 8 . 11 . 8 . . 14 13 . 7 3 10 1 8 . Parts Lost 51 | . . . 4 . . 1 6 1 . 5 . 9 . 1 16 2 . . . . 2 . 1 2 . . 1 . . . . . Power 5 | . . . 1 . . . . . . 1 . . . . 2 1 . . . . . . . . . . . . . . . . Propulsion 22 | . . . 1 . . 1 3 . . 3 . 5 . 1 6 . . . . . . . . 1 . . 1 . . . . . Utility 16 | . . . . . . . 2 1 . 1 . 2 . . 7 . . . . . 1 . 1 1 . . . . . . . . Weapon 8 | . . . 2 . . . 1 . . . . 2 . . 1 1 . . . . 1 . . . . . . . . . . . Highest Loss Streak 6 | . . . 2 . . 1 2 1 . 2 . 6 . 1 5 1 . . . . 1 . 1 1 . . 1 . . . . . To Critical Strikes . | . . . . . . . . . . . . . . . . . . . . . . . . . . . . . . . . . Average Slot Usage (%) 90 | . 99 100 99 100 99 99 97 98 97 89 89 91 78 95 95 92 86 86 86 87 89 90 88 87 81 77 86 88 88 70 70 71 Engine 4 | . 12 12 7 10 10 9 . 2 . 1 . . . . 6 10 11 12 10 5 5 5 5 2 . . . . . . . . Core 2 | . . . 2 . . . 7 5 8 6 7 7 7 7 5 1 . . . . . . . . . . . . . . . . Reactor 3 | . . . . . . . . . . . . . . . . . . . . 5 4 5 5 6 9 9 7 8 8 9 9 8 Leg 2 | . 25 25 23 . . . . . . . . . . . . . . . . . . . . . . . . . . 9 9 9 Hover 27 | . . . 16 40 40 39 39 41 39 33 41 38 26 40 34 31 24 25 26 27 30 30 29 24 22 22 19 22 23 . . . Device 16 | . 9 5 4 10 10 10 21 21 15 15 18 17 14 13 13 21 19 17 21 19 19 20 19 17 15 9 19 21 21 16 10 9 Storage 7 | . 12 12 10 10 10 10 8 8 8 8 7 7 7 7 11 9 6 6 5 5 5 5 5 4 4 4 4 6 7 9 16 10 Processor 9 | . 8 12 9 10 10 10 1 . 6 . . . . . . . 9 12 11 12 15 15 15 13 13 13 12 12 14 9 11 25 Hackware 1 | . . . . . . . . 1 . 2 . . 11 14 9 5 . . . . . . . 3 2 3 4 1 . . . . Protection 2 | . 6 6 5 . . . 1 . 1 4 1 5 . . . . . . . . . . . 3 4 4 7 5 3 . . . Energy Cannon 1 | . . . . . . . 7 2 . 1 . . . . . 4 5 5 4 4 1 . . . . . . 1 2 7 8 9 Special Weapon 3 | . 4 12 1 . . . . 5 7 4 4 2 2 4 3 2 4 5 4 2 4 4 2 2 2 3 2 3 1 . . . Slashing Weapon 3 | . . . . . 3 10 8 8 8 8 7 5 . . . . . . . . 3 5 3 3 3 3 4 2 3 1 . . Naked Turns . | . . . . . . . . . . . . . . . . . . . . . . . . . . . . . . . . . Heaviest Build 119 | 20 19 21 27 25 24 25 30 34 35 41 57 55 39 38 62 75 75 73 79 80 90 77 86 97 116 112 110 117 119 74 72 67 Greatest Support 128 | 20 20 20 51 26 26 26 38 46 46 46 56 56 36 54 84 84 75 75 92 84 98 84 89 108 108 108 108 118 128 70 95 70 Greatest Overweight (x) 3 | . 1 1 3 . . . 1 . 1 1 1 1 1 . 1 3 . . . . 1 . 1 1 1 1 1 1 1 1 1 . Average Overweight (x) . | . . . . . . . . . . . . . . . . . . . . . . . . . . . . . . . . . Largest Inventory Capacity 17 | . 10 10 10 10 10 10 10 10 10 10 15 15 15 15 15 15 15 15 15 15 15 15 15 15 15 15 15 15 17 17 17 17 Average Capacity 13 | . 10 10 10 10 10 10 10 10 10 10 13 15 15 15 15 15 15 15 15 15 15 15 15 15 15 15 15 15 15 17 17 17 Most Carried 17 | . 10 10 10 10 10 10 10 10 10 10 15 15 15 15 15 15 15 15 15 15 15 15 15 15 15 15 15 15 17 17 17 17 Average Carried 13 | . 9 10 9 10 9 9 9 9 9 9 13 13 13 14 14 14 14 14 14 14 14 14 14 14 14 14 14 14 15 14 15 16 Final Capacity 17 | 10 10 10 10 10 10 10 10 10 10 10 15 15 15 15 15 15 15 15 15 15 15 15 15 15 15 15 15 15 17 17 17 17 Final Carried 17 | 7 10 10 10 10 10 10 10 10 10 10 15 12 15 15 14 15 15 15 15 15 15 15 14 15 15 15 15 15 17 15 16 17 Class Distribution -------------------- 49% | Hacker-Mutant 14% | Hacker-Ninja 8% | Scavenger-Mutant 8% | Scavenger-Ninja 6% | Hacker-Scout 4% | Bothacker-Mutant 3% | Alien-Sigix Dominant Class ---------------- Hacker-Mutant | -10/Materials Hacker-Mutant | -10/Mines Hacker-Mutant | -9/Materials Hacker-Mutant | -9/Mines Hacker-Mutant | -9/Exiles Hacker-Scout | -8/Mines Hacker-Mutant | -8/Materials Scavenger-Mutant | -8/Garrison Scavenger-Mutant | -8/Materials Hacker-Mutant | -8/Garrison Hacker-Mutant | -7/Factory Hacker-Mutant | -7/Garrison Bothacker-Mutant | -7/Factory Bothacker-Mutant | -7/DSF Hacker-Mutant | -6/Factory Hacker-Mutant | -6/Garrison Hacker-Mutant | -6/Factory Hacker-Mutant | -6/Garrison Hacker-Mutant | -5/Factory Hacker-Mutant | -5/Garrison Hacker-Ninja | -4/Factory Hacker-Ninja | -4/Upper Caves Hacker-Sprinter | -4/Upper Caves Hacker-Mutant | -3/Research Hacker-Ninja | -3/Testing Scavenger-Mutant | -3/Garrison Scavenger-Ninja | -2/Research Scavenger-Ninja | -2/Quarantine Scavenger-Ninja | -2/Section 7 Alien-Sigix | -1/Access Alien-Sigix | -1/Command Alien-Sigix | -1/Access_0 Resources | -11 -10 -10 -9 -9 -9 -8 -8 -8 -8 -8 -7 -7 -7 -7 -6 -6 -6 -6 -5 -5 -4 -4 -4 -3 -3 -3 -2 -2 -2 -1 -1 -1 ----------- Run | Jun Mat Min Mat Min Exi Min Mat Gar Mat Gar Fac Gar Fac DSF Fac Gar Fac Gar Fac Gar Fac Upp Upp Res Tes Gar Res Qua Sec Acc Com Ac0 Matter Collected 22564 | 200 149 40 499 91 . 133 407 343 315 356 742 209 . 228 1951 854 932 304 1067 585 1445 555 602 3763 2264 191 1010 983 1340 61 944 1 Remotely . | . . . . . . . . . . . . . . . . . . . . . . . . . . . . . . . . . Salvage Created 40494 | . 367 83 1403 67 . 260 1096 1044 1071 845 1371 1118 . 116 2078 556 2074 865 2197 1057 1980 690 914 6011 1938 674 1704 883 3508 540 3292 692 Parts 1899 | . 25 4 87 5 . 20 61 67 56 58 75 45 . 1 63 34 84 26 99 52 90 23 25 303 98 30 96 40 153 32 99 48 Haulers Intercepted 54 | . 1 . . . . . . . . . . . . . 7 . 7 . 8 . 6 . . 11 3 . 3 2 4 2 . . Recyclers Shooed 7 | . 1 . 1 . . . . . . . . . . . . . 1 . 3 . . . . . . . . 1 . . . . Parts Field Recycled . | . . . . . . . . . . . . . . . . . . . . . . . . . . . . . . . . . Retrieved Matter . | . . . . . . . . . . . . . . . . . . . . . . . . . . . . . . . . . Parts Self-Destructed . | . . . . . . . . . . . . . . . . . . . . . . . . . . . . . . . . . Prevented . | . . . . . . . . . . . . . . . . . . . . . . . . . . . . . . . . . Kills | -11 -10 -10 -9 -9 -9 -8 -8 -8 -8 -8 -7 -7 -7 -7 -6 -6 -6 -6 -5 -5 -4 -4 -4 -3 -3 -3 -2 -2 -2 -1 -1 -1 ------- Run | Jun Mat Min Mat Min Exi Min Mat Gar Mat Gar Fac Gar Fac DSF Fac Gar Fac Gar Fac Gar Fac Upp Upp Res Tes Gar Res Qua Sec Acc Com Ac0 Combat Hostiles Destroyed 621 | . 7 2 34 5 . 7 20 27 19 30 33 27 . 2 32 23 15 15 18 22 20 17 11 70 24 8 23 15 57 2 28 8 Melee 268 | . . . . . . 4 16 22 19 7 24 21 . 2 12 1 . . . . 10 4 1 42 20 7 15 7 34 . . . Guns 52 | . 5 1 20 . . . . . . . . . . . . 1 1 2 1 4 4 . 5 8 . . . . . . . . Cannons 159 | . . . 8 5 . . 3 3 . 5 1 . . . 7 12 14 11 12 12 6 2 2 3 2 1 2 2 8 2 28 8 AOE 122 | . 2 1 4 . . 3 1 2 . 17 8 5 . . 7 9 . . 4 3 . 11 3 17 2 . 6 5 12 . . . Classes Destroyed 28 | . 4 . 3 . . 3 . 2 . 1 . . . 1 4 2 . . 1 1 . 1 . . 1 . 2 . . 1 1 . Worker 16 | . . . . . . . . . . . . . . . 1 . 1 . 4 . 1 . . 4 . . . . . 2 3 . Builder 13 | . . . . . . . . . . . . . . . 5 . . . 1 . 2 . . 4 . . . . . 1 . . Tunneler 1 | . . . . . . 1 . . . . . . . . . . . . . . . . . . . . . . . . . . Hauler 54 | . 1 . . . . . . . . . . . . . 7 . 7 . 8 . 6 . . 11 3 . 3 2 4 2 . . Recycler 13 | . . . . . . 1 1 . 1 . . . . . 1 . 2 . 3 . . . . 2 . . . . . 1 1 . Minesweeper 1 | . . . . . . . . . . . . . . . . . . . . . . 1 . . . . . . . . . . Mechanic 1 | . . . . . . . . . . . . . . . . . . . . . . . . . . . . . . . 1 . Operator 13 | . . . 1 . . . . . 2 . . . . . 1 . 4 . . . 1 . . 2 1 . . . . . 1 . Drone 20 | . . . . . . . . . . . . . . . . . . . . . . . . . . . 4 4 12 . . . Watcher 67 | . 2 . 2 . . . 5 . 5 . 6 . . . 6 . 5 . 6 . 6 . . 10 3 1 3 1 4 1 1 . Swarmer 141 | . 2 . 4 3 . 3 3 8 4 7 14 9 . . 8 12 2 3 4 6 4 8 1 15 5 3 4 3 6 . . . Cutter 9 | . . . . . . . . . . . . . . . 3 3 . . . 3 . . . . . . . . . . . . Saboteur 4 | . . . . . . . . . . 4 . . . . . . . . . . . . . . . . . . . . . . Grunt 167 | . 5 2 21 2 . 3 9 10 8 8 6 9 . . 7 3 3 6 3 2 5 4 3 25 6 1 4 1 5 . 6 . Brawler 12 | . . . 1 . . . . 1 . 1 1 2 . . 1 . . . . 1 1 1 1 . . . . . . . 1 . Duelist 10 | . . . . . . 1 2 1 . 1 . 1 . . 1 . . . . . . . 1 . . . . . . . 2 . Protector 3 | . . . . . . . . . . . . . . . 2 . . . . . . . . . . . . . . 1 . . Researcher 2 | . . . . . . . . . . . . . . . . . . . . . . . . . 2 . . . . . . . Sentry 82 | . . . 8 . . . 6 2 7 5 4 3 . . 2 . 5 4 . 5 2 2 1 10 3 2 3 3 4 1 . . Specialist 1 | . . . . . . . . . . . . . . . . . . . 1 . . . . . . . . . . . . . Hunter 33 | . . . . . . . . 2 . 1 2 . . . 2 . 1 . 4 1 . 2 4 5 2 . . . 4 . 3 . Programmer 99 | . . . . . . . . 3 . 3 6 3 . . 6 3 4 1 6 3 8 . . 15 8 1 6 3 18 . 2 . Q-Series 6 | . . . . . . . . . . . . . . . . . . . . . . . . . . . 2 1 3 . . . Behemoth 3 | . . . . . . . . . . . . . . . . 1 . 1 . . . . . . . 1 . . . . . . S7 Guard 1 | . . . . . . . . . . . . . . . . . . . . . . . . . . . . . 1 . . . M Guard 2 | . . . . . . . . . . . . . . . . . . . . . . . . . . . . . . . 2 . M Shell/Atk 4 | . . . . . . . . . . . . . . . . . . . . . . . . . . . . . . . 4 . M Shell/Def 4 | . . . . . . . . . . . . . . . . . . . . . . . . . . . . . . . 4 . Enhanced Grunt 2 | . . . . . . . . . . . . . . . . . . . . . . . . . . . . . . . . 2 Enhanced Sentry 1 | . . . . . . . . . . . . . . . . . . . . . . . . . . . . . . . . 1 Enhanced Hunter 1 | . . . . . . . . . . . . . . . . . . . . . . . . . . . . . . . . 1 Combat Programmer 2 | . . . . . . . . . . . . . . . . . . . . . . . . . . . . . . . 2 . Striker 3 | . . . . . . . . . . . . . . . . . . . . 1 . . . . . . . . 2 . . . Executioner 3 | . . . . . . . . . . . . . . . . 1 . . . . . . . . . . . . 2 . . . Assembled 1 | . . . . . . . . . . . . . . . . . . . . . . . . . . . . . . 1 . . Butcher 1 | . . . . . . . . . . . . . . 1 . . . . . . . . . . . . . . . . . . Mutant 1 | . . . . . . . . . . . . . . 1 . . . . . . . . . . . . . . . . . . Best Kill Streak 13 | . 2 2 4 3 . 5 5 3 6 8 4 5 . 2 13 6 5 3 8 4 5 7 3 9 6 3 4 9 10 5 12 3 Combat Bots Only 12 | . 2 2 4 3 . 3 5 3 4 8 4 5 . 2 5 6 4 3 6 4 4 7 3 8 6 3 4 7 9 1 12 3 Max Kills in Single Turn 4 | . 2 1 2 1 . 4 1 2 1 4 2 2 . 1 2 3 1 1 2 2 2 3 1 4 3 1 2 4 3 2 2 1 Gunslinging . | . . . . . . . . . . . . . . . . . . . . . . . . . . . . . . . . . Exploded 4 | . 2 1 2 . . 3 1 2 . 4 2 2 . . 2 3 . . 1 2 . 3 1 4 2 . 2 4 3 . . . Melee 1 | . . . . . . 1 1 1 1 1 1 1 . 1 1 1 . . . . 1 1 1 1 1 1 1 1 1 . . . Uniques/NPCs Destroyed 6 | . . . . . . . . . . . . . . . . . . . . . . . . . . . . . . . 2 4 MAIN.C Shell (-1/Command) MAIN.C (-1/Command) A8 (-1/Access_0) A6 (-1/Access_0) A5 (-1/Access_0) A2 (-1/Access_0) Combat | -11 -10 -10 -9 -9 -9 -8 -8 -8 -8 -8 -7 -7 -7 -7 -6 -6 -6 -6 -5 -5 -4 -4 -4 -3 -3 -3 -2 -2 -2 -1 -1 -1 -------- Run | Jun Mat Min Mat Min Exi Min Mat Gar Mat Gar Fac Gar Fac DSF Fac Gar Fac Gar Fac Gar Fac Upp Upp Res Tes Gar Res Qua Sec Acc Com Ac0 Damage Taken 16370 | . 98 62 1268 107 . 107 705 361 504 630 448 1045 . 196 2230 338 283 332 276 436 565 155 212 1272 345 206 227 404 2209 95 591 663 Core 2456 | . 30 11 211 35 . 20 101 48 82 102 25 187 . 33 414 40 54 24 33 56 97 18 22 82 24 6 37 63 151 30 209 211 Absorbed by Shields 8634 | . . . . . . . . 10 . . 111 268 . . 927 392 220 415 286 472 588 171 234 1268 344 148 52 288 1969 6 424 41 Redirected to Shielding 325 | . 6 9 . . . . 101 . . 101 24 60 . . . . . . . . . . . 24 . . . . . . . . Regen/Repaired (Parts) 3495 | . . . 61 . . . 148 . 315 . 204 . . . 287 . 222 . 154 . 216 . . 442 197 117 73 . 1059 . . . Core Remaining (%) 68 | 100 . 83 . . . 33 . . . 39 . . . 65 . . . 37 . 91 . . 88 . . 91 . . 63 . . 66 Volleys Fired 1862 | . 36 4 147 18 . 3 21 14 1 28 13 9 . 3 48 56 253 68 205 85 168 16 43 143 53 4 44 92 124 18 81 64 Largest 2 | . 2 1 1 1 . 1 1 1 1 1 1 1 . 1 1 2 2 2 2 2 2 1 2 1 1 1 1 1 1 1 1 1 Hottest 200 | . 100 100 100 39 . 33 75 98 5 69 98 39 . 5 105 73 73 73 100 73 90 94 132 94 200 200 120 120 200 200 200 180 Shots Fired 1939 | . 52 4 147 18 . 3 21 14 1 28 13 9 . 3 48 57 258 79 208 102 181 16 54 143 54 4 44 91 124 18 81 64 Gun 331 | . 36 1 101 . . . . . . . . . . . . 3 5 10 4 19 47 3 40 62 . . . . . . . . Cannon 1310 | . . . 32 18 . . 21 8 . 10 1 . . . 29 32 233 66 179 78 120 3 10 48 50 2 31 73 106 16 80 64 Launcher 90 | . 1 2 3 . . 3 . 1 . 11 9 4 . . 4 12 . . . 2 . 4 4 13 . . 4 1 9 2 1 . Special 208 | . 15 1 11 . . . . 5 1 7 3 5 . 3 15 10 20 3 25 3 14 6 . 20 4 2 9 17 9 . . . Kinetic 355 | . 16 . 32 18 . . . . . . . . . . . 3 5 10 4 19 47 3 44 106 48 . . . . . . . Thermal 993 | . 15 1 11 . . . 17 8 . . 1 . . . 29 32 233 66 179 78 120 . . . 2 2 31 73 87 3 5 . Explosive 90 | . 1 2 3 . . 3 . 1 . 11 9 4 . . 4 12 . . . 2 . 4 4 13 . . 4 1 9 2 1 . Electromagnetic 149 | . 20 1 101 . . . 4 . . 10 . . . . . . . . . . . 3 6 4 . . . . . . . . Slashing 171 | . . . . . . . . . . . . . . . . . . . . . . . . . . . . . 19 13 75 64 Robot Hit Streak 63 | . 16 19 28 13 . 1 16 21 . 12 10 5 . 7 14 12 48 50 26 18 34 12 13 17 11 3 26 22 23 37 63 48 Robot Miss Streak 5 | . 1 . 1 1 . 1 1 2 . 3 1 1 . . 1 2 1 2 2 4 4 2 3 2 1 1 2 2 3 2 3 5 Penetration Max 1 | . . . . . . . . . . . . . . . . . . . . . 1 . 1 1 . . . . 1 1 1 1 Secondary Targets . | . . . . . . . . . . . . . . . . . . . . . . . . . . . . . . . . . Shots Hit Robots 2143 | . 36 3 123 15 . 10 73 61 65 49 79 72 . 7 104 49 122 67 99 73 121 25 45 246 77 28 74 67 223 9 73 48 Core Hits 1254 | . 20 4 55 6 . 13 26 25 27 36 35 32 . 1 46 37 50 26 57 45 43 39 45 144 36 12 32 27 97 17 141 80 Critical Kills 34 | . . . . . . . . . . . . . . 1 6 . 2 2 3 2 2 . 3 9 . . . 1 3 . . . Critical Parts Destroyed 26 | . . . . . . . . . . . . 2 . . 13 2 . . . . 2 . 1 6 . . . . . . . . Critical Strikes 200 | . . . 5 1 . 1 3 4 8 3 9 9 . 1 19 2 2 2 3 2 8 4 4 37 12 1 1 1 18 2 24 14 Meltdown 14 | . . . . . . . . . . . . . . . 1 . 2 2 2 2 1 . . . . . . 1 3 . . . Destroy 27 | . . . . . . . . . . . . . . . . . . . 1 . 3 . 4 19 . . . . . . . . Blast 5 | . . . 3 1 . . . . . . . . . . . . . . . . . . . . 1 . . . . . . . Corrupt 2 | . . . 2 . . . . . . . . . . . . . . . . . . . . . . . . . . . . . Smash 23 | . . . . . . . . . . . . 2 . 1 18 2 . . . . . . . . . . . . . . . . Sever 129 | . . . . . . 1 3 4 8 3 9 7 . . . . . . . . 4 4 . 18 11 1 1 . 15 2 24 14 Melee Attacks 1775 | . 12 . 10 2 . 11 75 77 94 84 114 117 . 5 169 6 . 1 . 1 116 29 15 289 129 28 111 46 230 4 . . Impact 211 | . . . 10 2 . . . . . . . 12 . 5 169 6 . 1 . 1 . . . . . . . . 5 . . . Slashing 1559 | . 7 . . . . 11 75 77 94 84 114 105 . . . . . . . . 116 29 15 289 129 28 111 46 225 4 . . Piercing . | . . . . . . . . . . . . . . . . . . . . . . . . . . . . . . . . . Sneak Attacks 76 | . 3 . . . . . 2 3 2 . 4 3 . . 10 . . . . . 7 1 . 17 5 2 9 3 5 . . . Combat Hostiles 24 | . . . . . . . . 3 1 . 4 3 . . . . . . . . 2 . . 2 . 1 6 1 1 . . . Follow-up Attacks 6 | . . . . . . . . . . . . . . . . . . . . . . . . . . . 3 1 2 . . . Damage Inflicted 123821 | . 512 94 2056 336 . 650 3190 2825 3210 2956 4714 3575 . 179 5924 2376 3305 2049 3744 2435 5652 1806 2101 14514 4850 2154 4872 2732 13734 1904 17318 8054 Guns 4709 | . 432 13 1136 . . . . . . . . . . . . 86 91 237 76 357 870 23 798 590 . . . . . . . . Cannons 47121 | . . . 634 336 . . 481 151 . 226 33 . . . 751 943 3214 1812 2836 1848 1561 111 70 462 610 297 949 1058 2690 1319 16675 8054 Explosions 16945 | . 80 81 286 . . 282 85 162 . 1550 960 578 . . 1097 1139 . . 832 230 239 831 497 3036 245 130 755 515 2107 585 643 . Melee 55046 | . . . . . . 368 2624 2512 3210 1180 3721 2997 . 179 4076 208 . . . . 2982 841 736 10426 3995 1727 3168 1159 8937 . . . Ramming . | . . . . . . . . . . . . . . . . . . . . . . . . . . . . . . . . . Kinetic 5145 | . 203 . 634 336 . . . . . . . . . . . 86 91 237 76 357 870 23 827 950 455 . . . . . . . Thermal 20832 | . . . 136 . . . 472 151 . . 33 . . . 751 943 3214 1812 3668 1848 1800 . . . 400 427 949 1058 2230 . 940 . Explosive 14338 | . 80 81 150 . . 282 . 162 . 1550 960 578 . . 1097 1139 . . . 230 . 831 497 3036 . . 755 515 1742 585 68 . Electromagnetic 1952 | . 229 13 1136 . . . 94 . . 226 . . . . . . . . . . . 111 41 102 . . . . . . . . Impact 5037 | . . . . . . . . . . . . 424 . 179 4076 208 . . . . . . . . . . . . 150 . . . Slashing 76517 | . . . . . . 368 2624 2512 3210 1180 3721 2573 . . . . . . . . 2982 841 736 10426 3995 1727 3168 1159 9612 1319 16310 8054 Piercing . | . . . . . . . . . . . . . . . . . . . . . . . . . . . . . . . . . Highest Corruption 11 | . . . . . . . 1 2 2 1 2 5 5 5 11 11 11 2 . . 8 8 4 1 9 6 4 6 . . . . Average Corruption 3 | . . . . . . . 1 1 1 1 1 3 5 5 1 11 2 2 . . 5 5 4 1 4 6 1 4 . . . . Corruption Purged 23 | . . . . . . . . . 2 . . . . . . . 10 . . . . 4 . . 6 . 1 . . . . . Corruption Blocked . | . . . . . . . . . . . . . . . . . . . . . . . . . . . . . . . . . Effects 337 | . . . . . . . 4 13 . 5 7 14 1 7 44 27 37 8 . . 61 20 14 4 42 6 2 21 . . . . Message Errors 85 | . . . . . . . 1 3 . 1 2 4 1 2 14 3 7 1 . . 18 7 2 2 10 2 . 5 . . . . Matter Fused 75 | . . . . . . . 1 2 . 2 1 4 . 1 7 9 5 2 . . 17 5 2 . 11 2 1 3 . . . . Heat Flow Errors 44 | . . . . . . . 2 2 . 1 2 3 . 3 3 7 4 . . . 5 2 1 . 7 1 . 1 . . . . Energy Discharges 44 | . . . . . . . . 2 . . . 2 . 1 3 2 8 . . . 7 5 3 . 4 1 1 5 . . . . Parts Rejected 3 | . . . . . . . . . . . . . . . . 1 . . . . . . 1 . . . . 1 . . . . Parts Fused 6 | . . . . . . . . . . . . . . . 4 . . 1 . . . . . . 1 . . . . . . . Data Loss (minor) 35 | . . . . . . . . 2 . 1 1 . . . 7 . 4 2 . . 5 1 2 2 6 . . 2 . . . . Data Loss (major) 16 | . . . . . . . . 1 . . 1 1 . . 2 1 3 1 . . 4 . . . 1 . . 1 . . . . Misfires 9 | . . . . . . . . . . . . . . . . . 3 1 . . 2 . 2 . 1 . . . . . . . Alerts 10 | . . . . . . . . 1 . . . . . . 1 1 2 . . . 2 . . . 1 . . 2 . . . . Misdirections 4 | . . . . . . . . . . . . . . . 3 1 . . . . . . . . . . . . . . . . Weapon Failures 6 | . . . . . . . . . . . . . . . . 2 1 . . . 1 . 1 . . . . 1 . . . . Overload Shots 3 | . . . . . . . . . . . . . . . 3 . . . . . . . . . . . . . . . . . Effects 1 | . . . . . . . . . . . . . . . 1 . . . . . . . . . . . . . . . . . Heat Surge 1 | . . . . . . . . . . . . . . . 1 . . . . . . . . . . . . . . . . . Overflow Damage 7412 | . . . 20 1 . . 201 232 168 191 459 172 . 28 1963 196 44 17 90 15 310 118 311 847 179 . 424 40 933 114 113 226 Projectiles 938 | . . . 20 1 . . 15 . . . . . . . 98 32 44 17 74 15 42 . . 3 32 . 69 33 87 17 113 226 Explosions 1061 | . . . . . . . . 36 . 59 111 7 . . 85 20 . . 16 . 74 16 . 263 . . 82 1 194 97 . . Melee 5413 | . . . . . . . 186 196 168 132 348 165 . 28 1780 144 . . . . 194 102 311 581 147 . 273 6 652 . . . Knockbacks 34 | . . . 6 1 . . . . . . . 1 . 1 16 . . . . . . . . 4 4 . . . 1 . . . Impact 16 | . . . . . . . . . . . . 1 . 1 13 . . . . . . . . . . . . . 1 . . . Kinetic 15 | . . . 6 1 . . . . . . . . . . . . . . . . . . . 4 4 . . . . . . . Secondary 3 | . . . . . . . . . . . . . . . 3 . . . . . . . . . . . . . . . . . Self-Inflicted Damage 730 | . . . 20 . . . 33 . . 165 . 73 . . 57 73 . . 196 44 . 18 39 . . . . . . 12 . . Shots 29 | . . . 1 . . . 1 . . 7 . 2 . . 1 4 . . 3 4 . 1 3 . . . . . . 2 . . Rammed . | . . . . . . . . . . . . . . . . . . . . . . . . . . . . . . . . . Targets Rammed . | . . . . . . . . . . . . . . . . . . . . . . . . . . . . . . . . . Kicked . | . . . . . . . . . . . . . . . . . . . . . . . . . . . . . . . . . Crushed . | . . . . . . . . . . . . . . . . . . . . . . . . . . . . . . . . . Highest Temperature 474 | . 80 20 160 78 . 11 125 229 6 178 230 287 . 240 312 253 209 33 11 88 199 247 345 469 348 474 64 107 366 234 . 4 Average Temperature 54 | . 19 8 38 24 . 7 31 78 3 45 19 30 . 122 52 92 58 12 5 29 57 76 126 51 72 86 12 34 101 71 . 4 Received Heat Transfer 5427 | . 90 57 855 66 . 63 459 198 315 126 96 526 . 76 712 73 140 170 13 64 44 24 36 255 62 44 4 63 181 95 211 309 Effects 17 | . . . . . . . . . . . . . . 2 3 . 1 . . . . . . 5 2 1 . . 3 . . . Shutdowns 3 | . . . . . . . . . . . . . . . . . . . . . . . . 1 1 1 . . . . . . Energy Bleed 4 | . . . . . . . . . . . . . . 2 . . . . . . . . . 1 1 . . . . . . . Interference 10 | . . . . . . . . . . . . . . . 3 . 1 . . . . . . 3 . . . . 3 . . . Siege Activations . | . . . . . . . . . . . . . . . . . . . . . . . . . . . . . . . . . Robots Corrupted 3 | . . . 2 . . . . . . 1 . . . . . . . . . . . . . . . . . . . . . . Combat Hostiles 3 | . . . 2 . . . . . . 1 . . . . . . . . . . . . . . . . . . . . . . Parts Fried 48 | . 2 . 10 . . . . . . 2 . 1 . 1 30 1 . . . . . . . . . . . . 1 . . . Impact Corruptions 68 | . . . . . . . . . . . . 3 . 3 56 3 . . . . . . . . . . . . 3 . . . Robots Melted 16 | . . . . . . . . . . . . . . . 1 . 3 2 2 2 2 . . . . . . 1 3 . . . Combat Hostiles 10 | . . . . . . . . . . . . . . . 1 . . 2 1 2 . . . . . . . 1 3 . . . Parts Melted 71 | . . . . . . . 1 . . 1 . . . . 2 7 15 9 16 5 9 . . . 1 . . . 5 . . . Heat Transferred 25121 | . . . 200 . . . 692 235 . . 50 . . . 1110 1200 4875 2520 4772 2142 2374 . . . 290 180 814 1221 2085 . 361 . Parts Sabotaged . | . . . . . . . . . . . . . . . . . . . . . . . . . . . . . . . . . Parts Stolen . | . . . . . . . . . . . . . . . . . . . . . . . . . . . . . . . . . Parts Stripped . | . . . . . . . . . . . . . . . . . . . . . . . . . . . . . . . . . Power Chain Reactions 3 | . . . 2 . . . 1 . . . . . . . . . . . . . . . . . . . . . . . . . Missiles Intercepted 5 | . . . . . . . . . . . . . . . . . . . . . . . . . . . . . . . 5 . Alert | -11 -10 -10 -9 -9 -9 -8 -8 -8 -8 -8 -7 -7 -7 -7 -6 -6 -6 -6 -5 -5 -4 -4 -4 -3 -3 -3 -2 -2 -2 -1 -1 -1 ------- Run | Jun Mat Min Mat Min Exi Min Mat Gar Mat Gar Fac Gar Fac DSF Fac Gar Fac Gar Fac Gar Fac Upp Upp Res Tes Gar Res Qua Sec Acc Com Ac0 Peak Influence 1887 | . 172 65 476 124 . 205 303 1283 523 1070 519 938 365 218 521 1182 538 882 410 893 569 . . 792 363 377 378 397 460 1887 1542 . Initial 1100 | . . . . . . . . 38 458 60 407 28 365 198 73 159 456 78 343 43 348 . . 67 207 92 159 34 40 42 1100 . Average 260 | . 52 45 133 67 . 99 99 671 260 753 191 526 365 204 132 791 169 563 163 474 251 . . 344 128 238 190 195 169 779 1251 . Maximum Alert Level 5 | . . . 2 . . 1 1 4 2 3 2 3 1 1 2 4 2 3 2 3 2 . . 3 1 1 1 1 2 5 4 . Low Security (%) 52 | . 100 100 72 100 . 95 74 6 40 9 59 13 . 49 75 4 66 8 63 15 39 . . 29 71 45 52 60 63 51 . . Level 1 27 | . . . 26 . . 4 25 19 36 3 24 30 100 50 21 6 18 11 36 25 43 . . 30 28 54 47 39 34 . . . Level 2 11 | . . . 1 . . . . 25 23 30 15 19 . . 3 17 15 45 . 30 16 . . 35 . . . . 2 . . . Level 3 5 | . . . . . . . . 36 . 56 . 36 . . . 54 . 34 . 28 . . . 4 . . . . . . . . Level 4 2 | . . . . . . . . 11 . . . . . . . 17 . . . . . . . . . . . . . . 100 . Level 5 . | . . . . . . . . . . . . . . . . . . . . . . . . . . . . . . . . . High Security . | . . . . . . . . . . . . . . . . . . . . . . . . . . . . . . . . . Max Security . | . . . . . . . . . . . . . . . . . . . . . . . . . . . . . . 48 . . Sterilizations 1 | . . . . . . . . . . . . . . 1 . . . . . . . . . . . . . . . . . . Squads Dispatched 151 | . . . 7 . . . 5 . 5 . 11 . . 3 15 . 9 . 10 . 15 . . 19 7 . 9 8 14 12 2 . Investigation 31 | . . . 2 . . . 1 . 2 . 2 . . . 2 . 2 . 2 . 7 . . 4 1 . 3 2 1 . . . Extermination 48 | . . . . . . . . . . . 6 . . . 5 . 3 . 3 . 5 . . 6 3 . 5 2 10 . . . Reinforcement 45 | . . . 5 . . . 2 . . . 3 . . 3 7 . 4 . 5 . 3 . . 4 3 . 1 2 3 . . . Assault 17 | . . . . . . . . . . . . . . . . . . . . . . . . 2 . . . 1 . 12 2 . Garrison 10 | . . . . . . . 2 . 3 . . . . . 1 . . . . . . . . 3 . . . 1 . . . . Intercept . | . . . . . . . . . . . . . . . . . . . . . . . . . . . . . . . . . Searches Triggered . | . . . . . . . . . . . . . . . . . . . . . . . . . . . . . . . . . Construction Impeded 1 | . . . . . . . . . . . 1 . . . . . . . . . . . . . . . . . . . . . Haulers Reinforced 16 | . . . . . . . . . . . . . . . 3 . 2 . 5 . 1 . . 3 . . . . 2 . . . Active Scanning Responses . | . . . . . . . . . . . . . . . . . . . . . . . . . . . . . . . . . Cargo Convoy Interrupts 3 | . . . . . . . . . . . . . . . 1 . 1 . 1 . . . . . . . . . . . . . Alert ID Control Effect 3 | . . . . . . . . . . . . . . . . . . . . . . . . . . . . 3 . . . . Stealth | -11 -10 -10 -9 -9 -9 -8 -8 -8 -8 -8 -7 -7 -7 -7 -6 -6 -6 -6 -5 -5 -4 -4 -4 -3 -3 -3 -2 -2 -2 -1 -1 -1 --------- Run | Jun Mat Min Mat Min Exi Min Mat Gar Mat Gar Fac Gar Fac DSF Fac Gar Fac Gar Fac Gar Fac Upp Upp Res Tes Gar Res Qua Sec Acc Com Ac0 Distress Signals 42 | . 1 . 1 . . . 2 . 1 . 6 . . . 2 1 3 . 3 . 1 . . 3 1 1 1 1 1 2 11 . Communications Jammed . | . . . . . . . . . . . . . . . . . . . . . . . . . . . . . . . . . Distress Signals . | . . . . . . . . . . . . . . . . . . . . . . . . . . . . . . . . . Times Spotted 1018 | . 13 2 57 5 . 7 35 37 29 32 43 35 . 12 95 41 36 28 34 28 49 21 13 99 33 10 31 32 80 27 36 18 Peak Tracking Total 31 | . 3 2 4 3 . 3 8 4 4 8 3 6 . 4 10 6 4 6 7 4 9 7 4 6 4 4 6 6 10 31 9 6 Tactical Retreats 100 | . . . 7 . . . 2 4 1 1 2 3 . 2 21 2 4 4 3 . 12 2 . 9 . 1 1 1 13 3 . 2 Traps | -11 -10 -10 -9 -9 -9 -8 -8 -8 -8 -8 -7 -7 -7 -7 -6 -6 -6 -6 -5 -5 -4 -4 -4 -3 -3 -3 -2 -2 -2 -1 -1 -1 ------- Run | Jun Mat Min Mat Min Exi Min Mat Gar Mat Gar Fac Gar Fac DSF Fac Gar Fac Gar Fac Gar Fac Upp Upp Res Tes Gar Res Qua Sec Acc Com Ac0 Traps Triggered 52 | . 1 . 1 . . . 4 2 3 3 2 8 . 1 6 3 2 2 3 2 4 . . 2 2 . . . . 1 . . Indirectly . | . . . . . . . . . . . . . . . . . . . . . . . . . . . . . . . . . Trap Hack Attempts . | . . . . . . . . . . . . . . . . . . . . . . . . . . . . . . . . . Triggered . | . . . . . . . . . . . . . . . . . . . . . . . . . . . . . . . . . Disarmed . | . . . . . . . . . . . . . . . . . . . . . . . . . . . . . . . . . Reprogrammed . | . . . . . . . . . . . . . . . . . . . . . . . . . . . . . . . . . Reused 6 | . . . . . . . . . . . . . . . . . . . . 2 . 4 . . . . . . . . . . Traps Extracted . | . . . . . . . . . . . . . . . . . . . . . . . . . . . . . . . . . Installed 11 | . . . . 1 . . . . . . . . . . . . . . . 2 . 8 . . . . . . . . . . Triggered 9 | . . . . . . . . . . . . . . . . . . . . 2 . 7 . . . . . . . . . . Most Traps Carried 2 | . . . . . . . . . . . . . . . . . . . . 2 . . . . . . . . . . . . Power Sources Rigged 144 | . . . . . . . 8 11 12 5 4 . . 14 2 3 5 4 13 5 4 4 3 17 3 1 6 8 7 . 5 . Exploded 84 | . . . . . . . 5 9 7 5 1 . . 4 . . 2 3 7 2 4 . 3 10 2 . 5 6 6 . 3 . Machines | -11 -10 -10 -9 -9 -9 -8 -8 -8 -8 -8 -7 -7 -7 -7 -6 -6 -6 -6 -5 -5 -4 -4 -4 -3 -3 -3 -2 -2 -2 -1 -1 -1 ---------- Run | Jun Mat Min Mat Min Exi Min Mat Gar Mat Gar Fac Gar Fac DSF Fac Gar Fac Gar Fac Gar Fac Upp Upp Res Tes Gar Res Qua Sec Acc Com Ac0 Machines Disabled 124 | . . . 2 . . 1 . 9 . 5 . 5 . . 3 3 4 6 16 9 4 . . 2 9 1 1 9 17 10 3 5 Max in Single Turn 4 | . . . 1 . . 1 . 1 . 1 . 1 . . 2 1 1 1 3 1 4 . . 1 2 1 1 1 1 2 1 1 Garrison Access 1 | . . . . . . . . . . . . . . . . . . . . . . . . . . . . 1 . . . . Garrison Relay 27 | . . . . . . . . 6 . 4 . 5 . . . 3 . 4 . 4 . . . . . 1 . . . . . . Machines Repaired . | . . . . . . . . . . . . . . . . . . . . . . . . . . . . . . . . . Machines Sabotaged . | . . . . . . . . . . . . . . . . . . . . . . . . . . . . . . . . . Overloaded Fab Kills . | . . . . . . . . . . . . . . . . . . . . . . . . . . . . . . . . . Hacking | -11 -10 -10 -9 -9 -9 -8 -8 -8 -8 -8 -7 -7 -7 -7 -6 -6 -6 -6 -5 -5 -4 -4 -4 -3 -3 -3 -2 -2 -2 -1 -1 -1 --------- Run | Jun Mat Min Mat Min Exi Min Mat Gar Mat Gar Fac Gar Fac DSF Fac Gar Fac Gar Fac Gar Fac Upp Upp Res Tes Gar Res Qua Sec Acc Com Ac0 Machines Accessed 277 | . 8 1 12 . 1 1 14 4 16 4 27 1 2 . 22 1 27 3 19 . 27 . . 30 15 1 13 12 14 . 1 1 Terminals 161 | . 7 . 7 . . 1 8 4 11 4 13 1 1 . 13 1 12 3 10 . 10 . . 17 8 1 8 9 11 . 1 . Fabricators 24 | . . . . . . . . . . . 5 . . . 3 . 4 . 2 . 4 . . 3 2 . 1 . . . . . Repair Stations 27 | . . . 2 . . . 2 . 2 . 3 . . . 2 . 2 . 3 . 2 . . 4 1 . 1 2 1 . . . Recycling Units 27 | . 1 . 1 . . . 1 . . . 3 . 1 . 3 . 5 . 2 . 6 . . 2 . . 2 . . . . . Scanalyzers 26 | . . . 2 . . . 2 . 2 . 2 . . . . . 3 . 1 . 4 . . 3 3 . 1 1 2 . . . Garrison Access 9 | . . . . . . . 1 . 1 . 1 . . . 1 . 1 . 1 . 1 . . 1 1 . . . . . . . Total Hacks 739 | . 27 1 33 . 1 4 46 6 65 8 63 3 4 . 60 2 74 4 57 . 73 . . 83 35 3 25 23 34 . 1 4 Successful 479 | . 19 1 24 . 1 3 40 4 49 2 35 1 2 . 41 1 47 1 31 . 49 . . 57 19 1 13 10 23 . 1 4 Failed 260 | . 8 . 9 . . 1 6 2 16 6 28 2 2 . 19 1 27 3 26 . 24 . . 26 16 2 12 13 11 . . . Catastrophic 36 | . 2 . . . . . 1 . 4 1 1 . . . 4 . 5 1 2 . 5 . . 3 2 1 2 1 1 . . . Database Lockouts . | . . . . . . . . . . . . . . . . . . . . . . . . . . . . . . . . . Manual 224 | . 12 . 10 . 1 3 12 1 25 3 21 3 . . 14 2 27 2 10 . 25 . . 25 7 1 6 9 5 . . . Terminals 397 | . 24 . 24 . . 4 19 6 41 8 26 3 1 . 31 2 27 4 30 . 26 . . 43 24 3 15 17 18 . 1 . Fabricators 58 | . . . . . . . . . . . 13 . . . 9 . 13 . 4 . 7 . . 6 3 . 3 . . . . . Repair Stations 107 | . . . 5 . . . 12 . 19 . 12 . . . 10 . 8 . 12 . 6 . . 16 1 . 2 2 2 . . . Recycling Units 69 | . 3 . 2 . . . 3 . . . 7 . 3 . 8 . 10 . 4 . 20 . . 7 . . 2 . . . . . Scanalyzers 88 | . . . 2 . . . 10 . 4 . 4 . . . . . 14 . 5 . 12 . . 10 6 . 3 4 14 . . . Garrison Access 14 | . . . . . . . 2 . 1 . 1 . . . 2 . 2 . 2 . 2 . . 1 1 . . . . . . . Terminal Hacks 182 | . 14 1 15 . 1 3 11 4 22 2 9 1 1 . 15 1 9 1 10 . 7 . . 23 10 1 4 6 6 . 1 4 Record 6 | . . . . . . . . . . . . . . . . . . . . . 2 . . . 2 . 1 1 . . . . Part Schematic 8 | . . . . . . . 1 . . . 1 . . . 2 . . . . . . . . 2 2 . . . . . . . Robot Analysis 4 | . . . . . . . . . . . . . . . . . . . 1 . . . . 2 . . . 1 . . . . Prototype ID Bank 18 | . 2 . 5 . . . 2 . 4 . 1 . . . . . . . . . . . . 4 . . . . . . . . Open Door 8 | . . 1 . . . . . 1 . . . . . . . . . . 1 . . . . . 1 . . . 3 . 1 . Open DSF 4 | . . . . . . . . . . . . . 1 . 1 . . . 1 . 1 . . . . . . . . . . . Level Access Points 3 | . . . . . . 1 . . 1 . . . . . 1 . . . . . . . . . . . . . . . . . Branch Access Points 9 | . 1 . . . . 1 2 . 1 . . . . . . . 1 . . . . . . 1 . . 1 1 . . . . Emergency Access Points 1 | . . . . . . . . 1 . . . . . . . . . . . . . . . . . . . . . . . . Machine Index 1 | . . . . . . . . . 1 . . . . . . . . . . . . . . . . . . . . . . . Terminal Index 4 | . 1 . . . . . . . 1 . 1 . . . . . . . . . . . . . . . 1 . . . . . Repair Station Index 2 | . . . . . . . . . . . . . . . 1 . . . . . . . . 1 . . . . . . . . Alert Level 7 | . 1 . 4 . . . 2 . . . . . . . . . . . . . . . . . . . . . . . . . Unreport Threat 4 | . . . 2 . . . . . 1 . . . . . . . . . 1 . . . . . . . . . . . . . Locate Traps 34 | . 3 . 1 . . . 1 . 3 . 3 . . . 5 . 3 . 3 . 1 . . 5 2 . 1 1 2 . . . Dispatch Records 3 | . . . . . . 1 . . 2 . . . . . . . . . . . . . . . . . . . . . . . Security Status 1 | . . . . . . . . . 1 . . . . . . . . . . . . . . . . . . . . . . . Transport Status 3 | . 1 . . . . . . . . . . . . . 2 . . . . . . . . . . . . . . . . . Investigation Status 2 | . . . 1 . . . . . . . . . . . . . . . . . . . . 1 . . . . . . . . Extermination Status 1 | . . . . . . . . . . . . . . . . . . . . . . . . . . . . 1 . . . . Recall Reinforcements 1 | . . . . . . . . . . . . . . . . . 1 . . . . . . . . . . . . . . . Recall Assault 2 | . . . . . . . . . . . . . . . . . . . . . . . . 1 . . . 1 . . . . Hauler Manifests 14 | . 1 . . . . . 1 . 1 . . . . . 1 . 1 . 2 . 3 . . 3 1 . . . . . . . Registered Components 10 | . 1 . . . . . 1 . 1 . 1 . . . 1 . 2 . . . . . . 2 1 . . . . . . . Registered Prototypes 6 | . 1 . . . . . . . 1 . 1 . . . 1 . 1 . 1 . . . . . . . . . . . . . Zone Layout 11 | . 1 . 2 . . . 1 . 4 . 1 . . . . . . . . . . . . 1 . . . . 1 . . . Garrison Registry 6 | . . . . . . . . 1 . 1 . 1 . . . 1 . 1 . . . . . . . 1 . . . . . . Patrol Navigation 3 | . 1 . . . . . . 1 . 1 . . . . . . . . . . . . . . . . . . . . . . EX-Prototype ID Bank 1 | . . . . . 1 . . . . . . . . . . . . . . . . . . . . . . . . . . . Protovariant Controls 1 | . . . . . . . . . . . . . . . . . . . . . . . . . 1 . . . . . . . Gate Test 138-A 1 | . . . . . . . . . . . . . . . . . . . . . . . . . . . . . . . . 1 Gate Test 138-B 1 | . . . . . . . . . . . . . . . . . . . . . . . . . . . . . . . . 1 Gate Test 138-C 2 | . . . . . . . . . . . . . . . . . . . . . . . . . . . . . . . . 2 Fabricator Hacks 26 | . . . . . . . . . . . 4 . . . 3 . 6 . 2 . 6 . . 2 1 . 2 . . . . . Network Status 1 | . . . . . . . . . . . . . . . 1 . . . . . . . . . . . . . . . . . Load Schematic 13 | . . . . . . . . . . . 2 . . . 1 . 3 . 2 . 2 . . 1 1 . 1 . . . . . Build 12 | . . . . . . . . . . . 2 . . . 1 . 3 . . . 4 . . 1 . . 1 . . . . . Repair Station Hacks 91 | . . . 4 . . . 12 . 19 . 10 . . . 10 . 8 . 6 . 6 . . 12 . . 2 . 2 . . . Scan Component 46 | . . . 2 . . . 6 . 10 . 5 . . . 5 . 4 . 3 . 3 . . 6 . . 1 . 1 . . . Repair 45 | . . . 2 . . . 6 . 9 . 5 . . . 5 . 4 . 3 . 3 . . 6 . . 1 . 1 . . . Recycling Unit Hacks 24 | . 2 . 2 . . . 1 . . . 1 . 1 . 4 . 5 . 2 . 5 . . 1 . . . . . . . . Report Inventory 4 | . . . . . . . 1 . . . . . . . . . 2 . . . 1 . . . . . . . . . . . Retrieve Matter 4 | . 1 . 1 . . . . . . . . . . . 1 . . . . . 1 . . . . . . . . . . . Retrieve Components 16 | . 1 . 1 . . . . . . . 1 . 1 . 3 . 3 . 2 . 3 . . 1 . . . . . . . . Scanalyzer 65 | . . . . . . . 9 . 2 . 3 . . . . . 10 . 5 . 8 . . 9 4 . 2 1 12 . . . Insert Component 29 | . . . . . . . 4 . 1 . 2 . . . . . 4 . 2 . 3 . . 4 2 . 2 1 4 . . . Analyze 36 | . . . . . . . 5 . 1 . 1 . . . . . 6 . 3 . 5 . . 5 2 . . . 8 . . . Garrison Access Hacks 13 | . . . . . . . 1 . 1 . 1 . . . 2 . 2 . 2 . 2 . . 1 1 . . . . . . . Unlock Access 8 | . . . . . . . 1 . 1 . 1 . . . 1 . 1 . 1 . 1 . . . 1 . . . . . . . Coupler Status 5 | . . . . . . . . . . . . . . . 1 . 1 . 1 . 1 . . 1 . . . . . . . . Unauthorized Hacks 78 | . 3 . 3 . . . 6 . 5 . 7 . . . 7 . 7 . 4 . 15 . . 9 3 . 3 3 3 . . . Terminals 40 | . 3 . . . . . 3 . 3 . 3 . . . 3 . 3 . 3 . 3 . . 4 3 . 3 3 3 . . . Botnet 40 | . 3 . . . . . 3 . 3 . 3 . . . 3 . 3 . 3 . 3 . . 4 3 . 3 3 3 . . . Fabricators 9 | . . . . . . . . . . . 2 . . . 4 . 2 . . . . . . 1 . . . . . . . . Report 1 | . . . . . . . . . . . . . . . 1 . . . . . . . . . . . . . . . . . Liberate 1 | . . . . . . . . . . . 1 . . . . . . . . . . . . . . . . . . . . . Fabnet 7 | . . . . . . . . . . . 1 . . . 3 . 2 . . . . . . 1 . . . . . . . . Repair Stations 1 | . . . 1 . . . . . . . . . . . . . . . . . . . . . . . . . . . . . Mechanics 1 | . . . 1 . . . . . . . . . . . . . . . . . . . . . . . . . . . . . Recycling Units 22 | . . . . . . . 2 . . . 2 . . . . . 2 . 1 . 11 . . 4 . . . . . . . . Monitor 4 | . . . . . . . 1 . . . . . . . . . . . . . 2 . . 1 . . . . . . . . Reject 11 | . . . . . . . 1 . . . 2 . . . . . 2 . 1 . 4 . . 1 . . . . . . . . Mask 7 | . . . . . . . . . . . . . . . . . . . . . 5 . . 2 . . . . . . . . Scanalyzers 6 | . . . 2 . . . 1 . 2 . . . . . . . . . . . 1 . . . . . . . . . . . Extract 6 | . . . 2 . . . 1 . 2 . . . . . . . . . . . 1 . . . . . . . . . . . Garrison Access . | . . . . . . . . . . . . . . . . . . . . . . . . . . . . . . . . . Data Cores Recovered 9 | . . . . . . . . . 2 . . . . . 1 . 4 . . . 1 . . . 1 . . . . . . . Used 3 | . . . . . . . . . 1 . . . . . 1 . 1 . . . . . . . . . . . . . . . Hacking Detections 239 | . 7 . 8 . . 1 13 3 14 4 24 1 1 . 20 1 24 3 15 . 24 . . 26 14 1 12 11 11 . 1 . Full Trace Events 25 | . 1 . 1 . . . . . 1 . 2 . . . 1 . 2 . 1 . 5 . . 4 1 . 3 2 1 . . . Feedback Events 6 | . . . . . . . . . . . 1 . . . . . . . . . . . . 1 1 . 2 1 . . . . Corruption 6 | . . . . . . . . . . . 1 . . . . . . . . . . . . 1 1 . 2 1 . . . . Feedback Blocked . | . . . . . . . . . . . . . . . . . . . . . . . . . . . . . . . . . Robot Schematics Acquired . | . . . . . . . . . . . . . . . . . . . . . . . . . . . . . . . . . Robots Built 2 | . . . . . . . . . . . . . . . . . . . . . . . . 2 . . . . . . . . Authchips . | . . . . . . . . . . . . . . . . . . . . . . . . . . . . . . . . . Time 187 | . . . . . . . . . . . . . . . . . . . . . . . . 187 . . . . . . . . Total Robot Build Rating 14 | . . . . . . . . . . . . . . . . . . . . . . . . 14 . . . . . . . . Part Schematics Acquired 43 | . . . 4 . . . 7 . 3 . 2 . . . 2 . 2 . 2 . 5 . . 5 7 . . . 4 . . . Parts Built 17 | . . . . . . . . . . . 3 . . . 1 . 5 . . . 7 . . . . . 1 . . . . . Authchips . | . . . . . . . . . . . . . . . . . . . . . . . . . . . . . . . . . Time 888 | . . . . . . . . . . . 120 . . . 95 . 212 . . . 274 . . . . . 187 . . . . . Total Part Build Rating 98 | . . . . . . . . . . . 11 . . . 5 . 18 . . . 57 . . . . . 7 . . . . . Parts Repaired 45 | . . . 2 . . . 6 . 9 . 5 . . . 5 . 4 . 3 . 3 . . 6 . . 1 . 1 . . . Time 2334 | . . . 64 . . . 228 . 430 . 238 . . . 262 . 286 . 216 . 238 . . 305 . . 36 . 31 . . . Parts Recycled . | . . . . . . . . . . . . . . . . . . . . . . . . . . . . . . . . . Recycled Matter . | . . . . . . . . . . . . . . . . . . . . . . . . . . . . . . . . . Retrieved Matter 436 | . 203 . 233 . . . . . . . . . . . . . . . . . . . . . . . . . . . . . Retrieved Components 94 | . 9 . 9 . . . . . . . 8 . . . 16 . 12 . 18 . 13 . . 9 . . . . . . . . Parts Scanalyzed 23 | . . . . . . . 4 . 1 . 2 . . . . . 3 . 2 . 3 . . 4 1 . . 1 2 . . . Part Schematics Acquired 20 | . . . . . . . 3 . 1 . 1 . . . . . 2 . 2 . 3 . . 3 1 . . . 4 . . . Parts Damaged 3 | . . . . . . . . . . . 1 . . . . . . . . . . . . . . . . . 2 . . . Bothacking | -11 -10 -10 -9 -9 -9 -8 -8 -8 -8 -8 -7 -7 -7 -7 -6 -6 -6 -6 -5 -5 -4 -4 -4 -3 -3 -3 -2 -2 -2 -1 -1 -1 ------------ Run | Jun Mat Min Mat Min Exi Min Mat Gar Mat Gar Fac Gar Fac DSF Fac Gar Fac Gar Fac Gar Fac Upp Upp Res Tes Gar Res Qua Sec Acc Com Ac0 Used RIF Installer 9 | . . . . . . . . 2 . 1 . 2 . . . 1 . 1 . 1 . . . . . 1 . . . . . . Coupler Efficiency 2 | . . . . . . . . 1 . . . . . . . . . . . 1 . . . . . . . . . . . . Zone Cloak 1 | . . . . . . . . . . . . 1 . . . . . . . . . . . . . . . . . . . . Watcher Feeds 1 | . . . . . . . . . . . . . . . . 1 . . . . . . . . . . . . . . . . Alert ID Control 1 | . . . . . . . . . . . . . . . . . . 1 . . . . . . . . . . . . . . Structural Interface 1 | . . . . . . . . . . . . 1 . . . . . . . . . . . . . . . . . . . . Autooverride 1 | . . . . . . . . . . 1 . . . . . . . . . . . . . . . . . . . . . . Crosswire 1 | . . . . . . . . . . . . . . . . . . . . . . . . . . 1 . . . . . . Robots Hacked 146 | . 3 . . . . . . 4 . 4 . 1 . 3 11 7 16 5 23 6 13 1 . 18 3 1 7 12 4 . 4 . Non-combat 83 | . 3 . . . . . . . . . . . . . 4 . 14 . 19 . 10 1 . 18 3 . 3 4 4 . . . Combat 63 | . . . . . . . . 4 . 4 . 1 . 3 7 7 2 5 4 6 3 . . . . 1 4 8 . . 4 . Autooverrided 3 | . . . . . . . . . . 1 . . . . 1 . . . . . . . . . . . . 1 . . . . Robot Hacks Applied 139 | . 3 . . . . . . 4 . 3 . 1 . 3 10 7 20 3 21 2 12 1 . 19 3 1 8 14 4 . . . parse_system 14 | . 1 . . . . . . 1 . . . . . 2 . 1 2 . 1 2 1 . . 1 . . . 2 . . . . no_distress 70 | . 2 . . . . . . . . . . . . . 5 . 11 . 15 . 7 1 . 17 3 . 3 2 4 . . . ignore_repairs 3 | . . . . . . . . . . . . . . . . . 2 . . . 1 . . . . . . . . . . . find_fabricator 8 | . . . . . . . . . . . . . . . 1 . . . 2 . 2 . . 1 . . 2 . . . . . find_recycling 1 | . . . . . . . . . . . . . . . . . 1 . . . . . . . . . . . . . . . ignore_parts 10 | . . . . . . . . . . . . . . . . . 4 . 3 . 1 . . . . . . 2 . . . . link_complan 1 | . . . . . . . . . . . . . . . . . . . . . . . . . . . . 1 . . . . broadcast_data 1 | . . . . . . . . . . . . . . . . . . . . . . . . . . . . 1 . . . . overload_power 4 | . . . . . . . . . . . . . . . . 1 . . . . . . . . . . . 3 . . . . disable_weapons 1 | . . . . . . . . 1 . . . . . . . . . . . . . . . . . . . . . . . . reboot_system 4 | . . . . . . . . . . . . . . . . . . . . . . . . . . . 3 1 . . . . overwrite_iff 3 | . . . . . . . . 1 . . . . . . . 1 . . . . . . . . . 1 . . . . . . formatsys_high 19 | . . . . . . . . 1 . 3 . 1 . 1 4 4 . 3 . . . . . . . . . 2 . . . . Relay Couplers Released 113 | . . . . . . . . 28 . 16 . 19 . . . 11 . 12 . 18 . . . . . 5 . 4 . . . . Machine Destruction 105 | . . . . . . . . 24 . 16 . 19 . . . 11 . 12 . 18 . . . . . 5 . . . . . . Programmers 8 | . . . . . . . . 4 . . . . . . . . . . . . . . . . . . . 4 . . . . Attached 17 | . . . . . . . . 1 . 2 . 1 . 1 1 4 . 2 . 2 . . . . . 2 . 1 . . . . Crosswired 1 | . . . . . . . . . . . . . . . . . . . . . . . . . . 1 . . . . . . Fabnet Peak Effective % 15 | . . . . . . . . . . . . . . . 3 3 3 3 15 15 5 5 5 . . . 3 3 3 1 1 1 Autooverrided 23 | . . . . . . . . . . . . . . . 2 . 2 2 4 5 3 . . . . . 1 . . . 4 . Robots Rewired 6 | . . . . . . . . . . 2 . . . . . 2 . . . 1 . 1 . . . . . . . . . . Allies Hacked 2 | . . . . . . . . . . . . . . . . . . . . 1 . . . . . . . . . . 1 . Hacks Repelled . | . . . . . . . . . . . . . . . . . . . . . . . . . . . . . . . . . Allies | -11 -10 -10 -9 -9 -9 -8 -8 -8 -8 -8 -7 -7 -7 -7 -6 -6 -6 -6 -5 -5 -4 -4 -4 -3 -3 -3 -2 -2 -2 -1 -1 -1 -------- Run | Jun Mat Min Mat Min Exi Min Mat Gar Mat Gar Fac Gar Fac DSF Fac Gar Fac Gar Fac Gar Fac Upp Upp Res Tes Gar Res Qua Sec Acc Com Ac0 Total Allies 114 | . . 3 . . . . . 4 . 6 3 1 . 1 7 7 2 5 4 6 3 1 . 2 . 1 1 3 . 36 18 . Largest Group 18 | . . 3 3 . . . . 2 . 5 3 1 . 1 2 3 1 1 2 2 1 1 . 2 . 1 1 2 . 18 9 . Highest-Rated Group 250 | . . 40 40 . . . . 64 . 98 90 16 . 90 58 247 27 85 85 149 54 49 . 112 . 47 82 138 . 250 237 . Highest-Rated Ally 119 | . . 16 16 . . . . 39 . 31 30 16 . 90 46 119 27 85 85 119 54 49 . 56 . 47 82 69 . 15 89 . Total Orders 90 | . . 1 2 . . . . . . 3 49 1 . . 4 7 . . . 13 . . . . . . . . . 10 . . STAY 4 | . . . . . . . . . . 2 . . . . . 2 . . . . . . . . . . . . . . . . FOLLOW 4 | . . . . . . . . . . . 2 . . . . 2 . . . . . . . . . . . . . . . . EXPLORE 79 | . . 1 2 . . . . . . . 45 1 . . 4 3 . . . 13 . . . . . . . . . 10 . . RETURN 3 | . . . . . . . . . . 1 2 . . . . . . . . . . . . . . . . . . . . . Ally Attacks 471 | . . . 30 . . . . 18 . 13 58 3 . 11 21 33 . 23 10 15 9 3 . 13 . 3 4 21 . 128 55 . Total Damage 10892 | . . . 277 . . . . 246 . 159 465 45 . 459 334 1339 . 518 191 622 178 121 . 722 . 97 34 822 . 2241 2022 . Kills 68 | . . . 4 . . . . 4 . 1 2 . . 4 4 11 . 3 2 3 . . . 4 . . . 5 . 13 8 . Allies Corrupted 4 | . . . . . . . . . . . . . . . . . . . . . . . . . . . . 1 . . 3 . Allies Melted . | . . . . . . . . . . . . . . . . . . . . . . . . . . . . . . . . . Intel | -11 -10 -10 -9 -9 -9 -8 -8 -8 -8 -8 -7 -7 -7 -7 -6 -6 -6 -6 -5 -5 -4 -4 -4 -3 -3 -3 -2 -2 -2 -1 -1 -1 ------- Run | Jun Mat Min Mat Min Exi Min Mat Gar Mat Gar Fac Gar Fac DSF Fac Gar Fac Gar Fac Gar Fac Upp Upp Res Tes Gar Res Qua Sec Acc Com Ac0 Robot Analysis Total 4 | . . . . . . . . . . . . . . . . . . . 1 . . . . 2 . . . 1 . . . . Derelict Logs Recovered 3 | . . . . . . . . . . . . . . . . . . . . . . 2 1 . . . . . . . . . Drone Launches 113 | . . 1 1 . . . . . . 5 75 1 . . 4 3 . . 7 6 . . . . . . . . . 10 . . Drone Recoveries 87 | . . . 2 . . . . . . 1 71 1 . . 4 . . . . 6 . . . . . . . . . 2 . . Exploration | -11 -10 -10 -9 -9 -9 -8 -8 -8 -8 -8 -7 -7 -7 -7 -6 -6 -6 -6 -5 -5 -4 -4 -4 -3 -3 -3 -2 -2 -2 -1 -1 -1 ------------- Run | Jun Mat Min Mat Min Exi Min Mat Gar Mat Gar Fac Gar Fac DSF Fac Gar Fac Gar Fac Gar Fac Upp Upp Res Tes Gar Res Qua Sec Acc Com Ac0 Turns Passed 43854 | . 1258 463 2163 430 255 416 1389 1122 1739 1126 2577 875 101 202 3268 727 2625 649 2107 805 2943 974 662 4320 2532 320 1745 1230 3556 291 648 336 Spaces Moved 48825 | 1 848 272 1460 675 501 706 1634 1546 1700 1288 2403 889 154 324 3558 959 2482 749 2479 872 4064 1545 1343 4965 2282 285 1899 1427 3411 462 995 647 Core 1 | . . . . . . . . . . . . . . . . 1 . . . . . . . . . . . . . . . . Treads . | . . . . . . . . . . . . . . . . . . . . . . . . . . . . . . . . . Legs 4359 | 1 848 272 884 . . . . . . . . . . . . . . . . . . . . . . . . . 250 462 995 647 Wheels . | . . . . . . . . . . . . . . . . . . . . . . . . . . . . . . . . . Hover 44465 | . . . 576 675 501 706 1634 1546 1700 1288 2403 889 154 324 3558 958 2482 749 2479 872 4064 1545 1343 4965 2282 285 1899 1427 3161 . . . Flight . | . . . . . . . . . . . . . . . . . . . . . . . . . . . . . . . . . Fastest Speed 16 | 120 120 120 48 48 48 48 42 42 44 44 40 40 48 40 16 16 42 50 33 44 31 31 31 37 53 53 42 28 28 30 30 30 Average Speed 47 | 120 120 136 94 48 48 48 44 42 44 55 41 45 59 42 47 36 49 50 43 44 38 35 33 46 53 54 51 40 36 30 31 30 Slowest Speed 270 | 120 190 190 270 48 48 48 108 44 108 111 105 105 105 48 110 200 50 50 44 44 105 36 109 119 111 111 121 113 113 90 90 30 Overloaded Moves 113 | . . . . . . . . . . . . . . . 18 22 . . 13 . . . . 15 . . . 10 35 . . . Propulsion Burnouts . | . . . . . . . . . . . . . . . . . . . . . . . . . . . . . . . . . Robots Hopped . | . . . . . . . . . . . . . . . . . . . . . . . . . . . . . . . . . Cave-ins Triggered 1 | . . . . . . . . . . . . . . . . . . . . . 1 . . . . . . . . . . . Teleports 2 | . . . . . . . . . . . . . . . . . . . . . . . . . . . . . 1 . 1 . Exploration Rate (%) 76 | 1 99 99 94 99 89 96 95 90 98 88 95 92 4 94 70 93 68 64 56 94 85 97 99 94 95 45 43 95 87 21 35 43 Regions Visited 32 Branch Regions 11 Pre-discovered Areas 2 | . . 1 . . . . . . . . . . . . . . . . . . . 1 . . . . . . . . . . Known Exits Taken 24 | 1 1 1 1 1 1 1 1 . 1 . 1 . 1 . 1 . 1 . 1 . 1 1 1 1 1 . 1 1 1 1 1 . Unknown Exits Taken . | . . . . . . . . . . . . . . . . . . . . . . . . . . . . . . . . . Scrap Searched 11 | . . 1 . 1 . . . . . . . . . . . . . . . . . 5 4 . . . . . . . . . Spaces Dug 1266 | . 19 1 20 2 . 2 22 3 29 28 39 40 . 1 104 2 117 1 76 1 158 15 3 154 97 . 71 48 50 78 24 61 Terrain Destroyed 3038 | . 26 21 47 4 . 24 26 17 29 114 112 96 . 1 198 90 132 2 151 68 191 104 100 294 139 5 125 85 112 187 156 382 Melee 703 | . 5 . 10 2 . 2 22 3 29 28 39 40 . 1 98 2 . 1 . 1 77 15 3 130 60 . 65 24 43 3 . . Projectile 1110 | . 15 1 10 2 . . 1 . . . . . . . 8 2 132 1 96 . 101 2 17 33 40 . 8 29 27 107 96 382 AOE 1224 | . 6 20 27 . . 22 3 14 . 86 73 56 . . 92 86 . . 55 67 13 87 80 131 39 5 52 32 41 77 60 . Terrain Rammed . | . . . . . . . . . . . . . . . . . . . . . . . . . . . . . . . . . Walls Destroyed . | . . . . . . . . . . . . . . . . . . . . . . . . . . . . . . . . . Machines Disabled . | . . . . . . . . . . . . . . . . . . . . . . . . . . . . . . . . . Actions | -11 -10 -10 -9 -9 -9 -8 -8 -8 -8 -8 -7 -7 -7 -7 -6 -6 -6 -6 -5 -5 -4 -4 -4 -3 -3 -3 -2 -2 -2 -1 -1 -1 --------- Run | Jun Mat Min Mat Min Exi Min Mat Gar Mat Gar Fac Gar Fac DSF Fac Gar Fac Gar Fac Gar Fac Upp Upp Res Tes Gar Res Qua Sec Acc Com Ac0 Total 65240 | . 988 357 2051 758 517 767 2202 1925 2590 1596 3850 1227 162 377 4780 1265 3623 940 3296 1186 5083 1894 1471 6414 3342 403 2454 1923 5233 590 1254 722 Wait 9641 | . 42 78 343 59 . 37 375 203 726 114 1208 126 . 5 725 135 743 81 433 152 586 262 28 689 703 55 260 262 1111 40 56 4 Move 48790 | . 847 271 1459 674 500 705 1633 1545 1700 1286 2402 888 153 323 3556 958 2481 748 2478 870 4062 1544 1342 4964 2281 284 1898 1426 3410 461 994 647 Hop . | . . . . . . . . . . . . . . . . . . . . . . . . . . . . . . . . . Pick Up 482 | . 14 . 21 1 4 2 24 12 12 16 20 6 3 7 50 17 26 2 28 11 21 1 7 35 16 7 17 6 53 15 28 . Fast Attach 429 | . 5 1 6 1 3 . 14 8 19 4 15 . 1 2 27 5 22 3 33 7 28 4 1 53 38 4 22 18 79 . 4 2 Attach 215 | . 2 . 6 . . 1 7 1 3 6 4 9 1 1 32 5 6 1 14 3 9 . 3 8 6 4 10 2 22 19 30 . Detach 34 | . 1 . . . . . . . . 4 1 . 1 . 3 3 . . 2 . 2 . . . . . 1 . 3 4 8 1 Swap 799 | . 14 2 28 . 1 6 17 14 3 8 36 3 2 7 68 20 39 14 22 17 41 22 22 124 54 7 52 44 84 6 18 4 Drop 826 | . 15 1 31 2 9 2 28 27 20 18 32 2 1 6 65 16 44 5 57 18 45 4 7 85 59 9 38 21 115 14 30 . Fire 1862 | . 36 4 147 18 . 3 21 14 1 28 13 9 . 3 48 56 253 68 205 85 168 16 43 143 53 4 44 92 124 18 81 64 Melee 1763 | . 12 . 10 2 . 11 75 77 94 84 114 117 . 5 169 6 . 1 . 1 116 29 15 289 129 28 106 44 225 4 . . Ram . | . . . . . . . . . . . . . . . . . . . . . . . . . . . . . . . . . Kick . | . . . . . . . . . . . . . . . . . . . . . . . . . . . . . . . . . Crush . | . . . . . . . . . . . . . . . . . . . . . . . . . . . . . . . . . Escape Stasis 230 | . . . . . . . . 13 . 21 . 67 . 4 35 39 4 13 8 13 1 . . 7 . . . . . 5 . . Rewire 5 | . . . . . . . . . . . 1 . . . . 2 . . . 2 . . . . . . . . . . . . Trap 155 | . . . . 1 . . 8 11 12 5 4 . . 14 2 3 5 4 13 7 4 12 3 17 3 1 6 8 7 . 5 . Miscellaneous 9 | . . . . . . . . . . 2 . . . . . . . . 3 . . . . . . . . . . 4 . . Route ------- -11/Junkyard -10/Materials (discovered 4 exits: *Mat x3 / *Min) -10/Mines (discovered 2 exits: *Mat x2) -9/Materials (discovered 5 exits: *Mat x3 / *Min / *Sto) -9/Mines (discovered 4 exits: *Mat x2 / *Exi / [*Zio]) -9/Exiles -8/Mines (discovered 2 exits: *Mat x2) -8/Materials (discovered 4 exits: *Fac x3 / Gar) -8/Garrison (discovered 4 exits: *Mat x4) -8/Materials (discovered 4 exits: *Fac x3 / Gar) -8/Garrison (discovered 3 exits: *Fac x3) -7/Factory (discovered 7 exits: *Fac x4 / *Low x2 / Gar) -7/Garrison (discovered 3 exits: *Fac x3) -7/Factory (discovered 2 exits: *Fac / DSF) -7/DSF -6/Factory (discovered 6 exits: *Fac x4 / *Low / Gar) -6/Garrison (discovered 3 exits: *Fac x3) -6/Factory (discovered 5 exits: *Fac x2 / *Low x2 / Gar) -6/Garrison (discovered 3 exits: *Fac x3) -5/Factory (discovered 4 exits: *Fac x2 / *Ext / Gar) -5/Garrison (discovered 3 exits: *Fac x3) -4/Factory (discovered 6 exits: *Res x3 / *Upp x2 / Gar) -4/Upper Caves -4/Upper Caves (discovered 2 exits: *Res / *War) -3/Research (discovered 5 exits: *Res x2 / *Arm / *Tes x2) -3/Testing (discovered 2 exits: *Res / Gar) -3/Garrison (discovered 3 exits: *Res x3) -2/Research (discovered 4 exits: *Acc x2 / *Qua x2) -2/Quarantine -2/Section 7 -1/Access -1/Command (discovered 3 exits: Sur x2 / *Ac0) -1/Access_0 Subspace History --------- Turn | Location | Event 1 | -11/Junkyard | Identified exit to Materials 1 | -11/Junkyard | Discovered exit to Materials (range 0) 1 | -11/Junkyard | Entered Materials 1 | -10/Materials | Evolved 1 slot: Utility x1 19 | -10/Materials | Identified exit to Mines 295 | -10/Materials | Identified exit to Materials 295 | -10/Materials | Discovered exit to Materials (range 9) 316 | -10/Materials | Build established: Hacker-Mutant 496 | -10/Materials | Discovered exit to Materials (range 12) 698 | -10/Materials | Discovered exit to Materials (range 3) 1259 | -10/Materials | Entered Mines 1260 | -10/Mines | Learned location of Storage (-9) 1320 | -10/Mines | Met a Derelict bent on vengeance 1473 | -10/Mines | Assisted by bots powering up and referring to "LRC-V3" 1516 | -10/Mines | Found the Drone Emporium 1523 | -10/Mines | Found Prototype Device 1523 | -10/Mines | Identified Thief Drone Bay 1538 | -10/Mines | Discovered exit to Materials (range 60) 1542 | -10/Mines | Discovered exit to Materials (range 50) 1722 | -10/Mines | Entered Materials 1722 | -9/Materials | Accompanied by 4 allies 1722 | -9/Materials | Evolved 2 slots: Propulsion x2 2259 | -9/Materials | Identified exit to Materials 2259 | -9/Materials | Discovered exit to Materials (range 4) 2783 | -9/Materials | Discovered exit to Materials (range 10) 2926 | -9/Materials | Identified exit to Mines 2926 | -9/Materials | Discovered exit to Mines (range 16) 3307 | -9/Materials | Core integrity fell below 50% 3580 | -9/Materials | Discovered exit to Materials (range 15) 3610 | -9/Materials | Identified exit to Storage 3610 | -9/Materials | Discovered exit to Storage (range 9) 3798 | -9/Materials | Repaired Imp. Hover Unit 3832 | -9/Materials | Repaired Imp. Light Cannon 3885 | -9/Materials | Entered Mines 3892 | -9/Mines | A Derelict revealed a hidden shortcut to a safe place 3925 | -9/Mines | Received a Rocket Launcher from a helpful Derelict 3958 | -9/Mines | Discovered exit to Materials (range 12) 4004 | -9/Mines | Discovered exit to Materials (range 10) 4101 | -9/Mines | Found a hidden stash of uninstalled traps 4117 | -9/Mines | A weapon hastily lodged in a ceiling crevice suddenly fell to the ground 4128 | -9/Mines | Deemed a non-threat by the Exiles lab entrance 4128 | -9/Mines | Identified exit to Exiles 4128 | -9/Mines | Discovered exit to Exiles (range 5) 4315 | -9/Mines | Entered Exiles 4328 | -9/Exiles | Met 8R-AWN 4335 | -9/Exiles | Met EX-HEX 4366 | -9/Exiles | Met EX-DEC 4375 | -9/Exiles | Visited The Gauntlet 4428 | -9/Exiles | Met EX-BIN 4434 | -9/Exiles | Aligned with FarCom system 4435 | -9/Exiles | Given EX-Vault access code 4446 | -9/Exiles | Opened EX-Vault 4450 | -9/Exiles | Found Longsword +1 4461 | -9/Exiles | Found PSU Rigger 4473 | -9/Exiles | Warned to stay clear of 0b10 Research branches 4484 | -9/Exiles | Found YOLO Cannon 4564 | -9/Exiles | Identified exit to Mines 4564 | -9/Exiles | Discovered exit to Mines (range 14) 4570 | -9/Exiles | Stole three prototypes: Longsword +1, PSU Rigger, YOLO Cannon 4570 | -9/Exiles | Entered Mines 4620 | -8/Mines | Discovered exit to Materials (range 13) 4645 | -8/Mines | Discovered exit to Materials (range 8) 4986 | -8/Mines | Entered Materials 4986 | -8/Materials | Evolved 2 slots: Propulsion x1, Utility x1 5143 | -8/Materials | Identified exit to Factory 5143 | -8/Materials | Discovered exit to Factory (range 10) 5157 | -8/Materials | Garrison activated, responded to threat 5458 | -8/Materials | Repaired Imp. Hover Unit 5618 | -8/Materials | Discovered exit to Factory (range 8) 5715 | -8/Materials | Repaired Airjet 5755 | -8/Materials | Repaired Airjet 5807 | -8/Materials | Repaired Adv. Heat Sink 5846 | -8/Materials | Repaired Reaction Control System 5880 | -8/Materials | Repaired Imp. Hover Unit 6130 | -8/Materials | Discovered exit to Factory (range 16) 6348 | -8/Materials | Identified exit to Garrison 6364 | -8/Materials | Garrison activated, responded to threat 6375 | -8/Materials | Entered Garrison 6408 | -8/Garrison | Triggered checkpoint 6432 | -8/Garrison | Triggered checkpoint 6451 | -8/Garrison | Garrison Relay disabled 6455 | -8/Garrison | Identified exit to Materials 6455 | -8/Garrison | Discovered exit to Materials (range 65) 6455 | -8/Garrison | Discovered exit to Materials (range 66) 6455 | -8/Garrison | Discovered exit to Materials (range 87) 6455 | -8/Garrison | Discovered exit to Materials (range 100) 6464 | -8/Garrison | Garrison Relay disabled 6498 | -8/Garrison | Installed Relay Interface Framework 6598 | -8/Garrison | Triggered checkpoint 6640 | -8/Garrison | Triggered checkpoint 6656 | -8/Garrison | Garrison Relay disabled 6778 | -8/Garrison | Triggered checkpoint 6800 | -8/Garrison | Garrison Relay disabled 6852 | -8/Garrison | Expanded RIF knowledge: Coupler Efficiency 6899 | -8/Garrison | Triggered checkpoint 6965 | -8/Garrison | Garrison Relay disabled 6974 | -8/Garrison | Triggered checkpoint 7028 | -8/Garrison | Rescued a captive Derelict 7029 | -8/Garrison | Rescued a captive Derelict 7126 | -8/Garrison | Build established: Scavenger-Mutant 7178 | -8/Garrison | Triggered checkpoint 7324 | -8/Garrison | Triggered checkpoint 7332 | -8/Garrison | Triggered checkpoint 7332 | -8/Garrison | Garrison Relay disabled 7497 | -8/Garrison | Entered Materials 7662 | -8/Materials | Repaired Gyrokinetic Inverter 7707 | -8/Materials | Repaired Remote Datajack 7769 | -8/Materials | Repaired Aerolev Unit 7814 | -8/Materials | Repaired Gravmag System 7865 | -8/Materials | Repaired Adv. Heat Sink 8235 | -8/Materials | Repaired Gravmag System 8298 | -8/Materials | Discovered exit to Factory (range 4) 8417 | -8/Materials | Discovered exit to Factory (range 8) 8652 | -8/Materials | Discovered exit to Factory (range 11) 8888 | -8/Materials | Garrison activated, responded to threat 8995 | -8/Materials | Repaired Gravmag System 9046 | -8/Materials | Repaired Gravmag System 9091 | -8/Materials | Repaired Gravmag System 9236 | -8/Materials | Identified exit to Garrison 9236 | -8/Materials | Entered Garrison 9258 | -8/Garrison | Triggered checkpoint 9305 | -8/Garrison | Garrison Relay disabled 9380 | -8/Garrison | Destroyed 7 combat bots 9387 | -8/Garrison | Core integrity fell below 50% 9503 | -8/Garrison | Triggered checkpoint 9536 | -8/Garrison | Destroyed 7 combat bots 9637 | -8/Garrison | Build established: Hacker-Mutant 9652 | -8/Garrison | Triggered checkpoint 9652 | -8/Garrison | Garrison Relay disabled 9707 | -8/Garrison | Discovered exit to Factory (range 10) 9755 | -8/Garrison | Destroyed 8 combat bots 10002 | -8/Garrison | Discovered exit to Factory (range 9) 10002 | -8/Garrison | Discovered exit to Factory (range 29) 10002 | -8/Garrison | Discovered exit to Factory (range 78) 10048 | -8/Garrison | Triggered checkpoint 10072 | -8/Garrison | Expanded RIF knowledge: Autooverride 10078 | -8/Garrison | Garrison Relay disabled 10208 | -8/Garrison | Triggered checkpoint 10362 | -8/Garrison | Entered Factory 10362 | -7/Factory | Accompanied by 4 allies 10362 | -7/Factory | Evolved 2 slots: Propulsion x1, Utility x1 10364 | -7/Factory | FarCom data flow suspended 10675 | -7/Factory | Repaired Gyrokinetic Inverter 10736 | -7/Factory | Repaired Hvy. Rocket Launcher 10851 | -7/Factory | Repaired Gravmag System? 10912 | -7/Factory | Repaired Gravmag System 10997 | -7/Factory | Identified exit to Lower Caves 10997 | -7/Factory | Discovered exit to Lower Caves (range 63) 11165 | -7/Factory | Identified exit to Factory 11165 | -7/Factory | Discovered exit to Factory (range 14) 11226 | -7/Factory | Discovered exit to Factory (range 67) 11230 | -7/Factory | Discovered exit to Factory (range 55) 11289 | -7/Factory | Repaired Adv. Heat Sink 11934 | -7/Factory | Found Prototype Launcher 11934 | -7/Factory | Identified Rocket Array 11968 | -7/Factory | Fabricated Imp. Propulsion Shielding? 11984 | -7/Factory | Discovered exit to Factory (range 53) 12205 | -7/Factory | Fabricated Adv. Sensor Array (x1) 12205 | -7/Factory | Discovered exit to Lower Caves (range 93) 12937 | -7/Factory | Identified exit to Garrison 12939 | -7/Factory | Entered Garrison 12988 | -7/Garrison | Triggered checkpoint 13011 | -7/Garrison | Garrison Relay disabled 13194 | -7/Garrison | Identified exit to Factory 13194 | -7/Garrison | Discovered exit to Factory (range 10) 13243 | -7/Garrison | Garrison Relay disabled 13310 | -7/Garrison | Triggered checkpoint 13314 | -7/Garrison | Triggered checkpoint 13342 | -7/Garrison | Garrison Relay disabled 13425 | -7/Garrison | Discovered exit to Factory (range 8) 13448 | -7/Garrison | Expanded RIF knowledge: Structural Interface 13496 | -7/Garrison | Triggered checkpoint 13498 | -7/Garrison | Garrison Relay disabled 13562 | -7/Garrison | Triggered checkpoint 13597 | -7/Garrison | Discovered exit to Factory (range 9) 13602 | -7/Garrison | Expanded RIF knowledge: Zone Cloak 13616 | -7/Garrison | Triggered checkpoint 13699 | -7/Garrison | Lost 6 parts (3n1u2w) 13758 | -7/Garrison | Discovered exit to Factory (range 42) 13758 | -7/Garrison | Discovered exit to Factory (range 45) 13758 | -7/Garrison | Discovered exit to Factory (range 27) 13768 | -7/Garrison | Triggered checkpoint 13814 | -7/Garrison | Entered Factory 13893 | -7/Factory | Discovered exit to Factory (range 15) 13915 | -7/Factory | Identified exit to DSF 13915 | -7/Factory | Entered DSF 13932 | -7/DSF | Additional patrols routed to DSF 13952 | -7/DSF | Wild Derelicts raided the area 14004 | -7/DSF | Build established: Bothacker-Mutant 14061 | -7/DSF | Discovered exit to Factory (range 15) 14102 | -7/DSF | Sterilization system engaged 14117 | -7/DSF | Entered Factory 14117 | -6/Factory | Evolved 2 slots: Power x1, Utility x1 14278 | -6/Factory | Repaired Adv. Shield Generator 14330 | -6/Factory | Repaired Lgt. Angular Momentum Engine 14376 | -6/Factory | Repaired Gravmag System 14669 | -6/Factory | Identified exit to Factory 14669 | -6/Factory | Discovered exit to Factory (range 4) 15596 | -6/Factory | Identified exit to Lower Caves 15596 | -6/Factory | Discovered exit to Lower Caves (range 12) 15653 | -6/Factory | Garrison activated, responded to threat 15784 | -6/Factory | Build established: Hacker-Mutant 15886 | -6/Factory | Cargo convoy interrupted 15986 | -6/Factory | Lost 5 parts (1p3n1u) 16032 | -6/Factory | Found Prototype Processor 16033 | -6/Factory | Identified Spectral Analyzer 16035 | -6/Factory | Found Prototype Hackware 16036 | -6/Factory | Identified Exp. Hacking Suite 16473 | -6/Factory | Repaired Gyrokinetic Inverter 16535 | -6/Factory | Repaired Cmb. Gravmag System 16825 | -6/Factory | Fabricated Gravmag Array (x1) 16951 | -6/Factory | Lost 4 parts (1p1n1u1w) 17033 | -6/Factory | Found Prototype Launcher 17033 | -6/Factory | Identified Scatter Rocket Array 17260 | -6/Factory | System corruption reached 10% 17283 | -6/Factory | Lost 3 parts (1n2u) 17371 | -6/Factory | Identified exit to Garrison 17385 | -6/Factory | Entered Garrison 17416 | -6/Garrison | Triggered checkpoint 17441 | -6/Garrison | Garrison Relay disabled 17460 | -6/Garrison | Triggered checkpoint 17465 | -6/Garrison | Core integrity fell below 50% 17467 | -6/Garrison | Triggered checkpoint 17628 | -6/Garrison | Identified exit to Factory 17628 | -6/Garrison | Discovered exit to Factory (range 2) 17634 | -6/Garrison | Triggered checkpoint 17737 | -6/Garrison | Garrison Relay disabled 17800 | -6/Garrison | Spotted Executioner 17808 | -6/Garrison | Destroyed Executioner 17817 | -6/Garrison | Found Exp. Core Analyzer 17824 | -6/Garrison | Rewired Striker 17827 | -6/Garrison | Rewired Executioner 17888 | -6/Garrison | Triggered checkpoint 17897 | -6/Garrison | Discovered exit to Factory (range 13) 17920 | -6/Garrison | Triggered checkpoint 17939 | -6/Garrison | Garrison Relay disabled 17966 | -6/Garrison | Triggered checkpoint 17968 | -6/Garrison | Triggered checkpoint 17999 | -6/Garrison | Discovered exit to Factory (range 44) 17999 | -6/Garrison | Discovered exit to Factory (range 52) 17999 | -6/Garrison | Discovered exit to Factory (range 26) 18013 | -6/Garrison | Found Antimissile System 18016 | -6/Garrison | Spotted B-75 Beast 18030 | -6/Garrison | Expanded RIF knowledge: Watcher Feeds 18051 | -6/Garrison | Destroyed B-75 Beast 18059 | -6/Garrison | Found Exp. Core Analyzer 18080 | -6/Garrison | Found Gamma Bomb Array 18112 | -6/Garrison | Entered Factory 18402 | -6/Factory | Discovered exit to Lower Caves (range 7) 18795 | -6/Factory | Repaired Cld. Deuterium Engine? 18799 | -6/Factory | Repaired Cmb. Gravmag System 18892 | -6/Factory | Repaired Cld. Plasma Cannon? 18898 | -6/Factory | Repaired Gravity Neutralizer 18982 | -6/Factory | Discovered exit to Factory (range 15) 19404 | -6/Factory | Discovered exit to Factory (range 6) 19468 | -6/Factory | Fabricated Transport Network Coupler (x2) 19942 | -6/Factory | Fabricated Rocket Array? 20162 | -6/Factory | Cargo convoy interrupted 20199 | -6/Factory | Found Prototype Launcher 20199 | -6/Factory | Identified Mni. Smartbomb Launcher 20208 | -6/Factory | Found Prototype Device 20208 | -6/Factory | Identified Exp. Thermal Shield 20211 | -6/Factory | Found Prototype Device 20211 | -6/Factory | Identified Adv. EM Disruption Field 20339 | -6/Factory | Fabricated Adv. Shield Generator? 20737 | -6/Factory | Identified exit to Garrison 20737 | -6/Factory | Entered Garrison 20797 | -6/Garrison | Garrison Relay disabled 20804 | -6/Garrison | Garrison Relay disabled 20814 | -6/Garrison | Triggered checkpoint 20866 | -6/Garrison | Triggered checkpoint 20866 | -6/Garrison | Spotted B-75 Beast 20880 | -6/Garrison | Triggered checkpoint 20895 | -6/Garrison | Triggered checkpoint 20934 | -6/Garrison | Destroyed B-75 Beast 20940 | -6/Garrison | Triggered checkpoint 21130 | -6/Garrison | Spotted B-90 Cyclops 21164 | -6/Garrison | Garrison Relay disabled 21193 | -6/Garrison | Discovered exit to Factory (range 11) 21198 | -6/Garrison | Expanded RIF knowledge: Alert ID Control 21211 | -6/Garrison | Discovered exit to Factory (range 13) 21211 | -6/Garrison | Discovered exit to Factory (range 46) 21211 | -6/Garrison | Discovered exit to Factory (range 88) 21270 | -6/Garrison | Triggered checkpoint 21328 | -6/Garrison | Garrison Relay disabled 21386 | -6/Garrison | Entered Factory 21386 | -5/Factory | Accompanied by 1 ally 21386 | -5/Factory | Evolved 2 slots: Propulsion x1, Utility x1 21414 | -5/Factory | Identified exit to DSF 21510 | -5/Factory | Identified exit to Factory 21510 | -5/Factory | Discovered exit to Factory (range 16) 21967 | -5/Factory | Repaired Cld. Aerolev Unit 22206 | -5/Factory | Spotted B-75 Beast 22331 | -5/Factory | Identified exit to Extension 22331 | -5/Factory | Discovered exit to Extension (range 6) 22379 | -5/Factory | Discovered exit to Factory (range 5) 22399 | -5/Factory | Identified exit to Garrison 23065 | -5/Factory | Repaired Adv. Force Field 23138 | -5/Factory | Repaired Adv. Remote Datajack 23340 | -5/Factory | Cargo convoy interrupted 23493 | -5/Factory | Entered Garrison 23493 | -5/Garrison | Accompanied by 7 allies 23516 | -5/Garrison | Triggered checkpoint 23519 | -5/Garrison | Local machine network offline 23520 | -5/Garrison | Triggered checkpoint 23526 | -5/Garrison | Triggered checkpoint 23526 | -5/Garrison | Discovered exit to Factory (range 76) 23574 | -5/Garrison | Garrison Relay disabled 23606 | -5/Garrison | Triggered checkpoint 23695 | -5/Garrison | Garrison Relay disabled 23710 | -5/Garrison | Discovered exit to Factory (range 8) 23752 | -5/Garrison | Spotted B-86 Titan 23793 | -5/Garrison | Spotted Striker 23818 | -5/Garrison | Destroyed Striker 23896 | -5/Garrison | Rewired Executioner 23923 | -5/Garrison | Discovered exit to Factory (range 10) 23930 | -5/Garrison | Expanded RIF knowledge: Coupler Efficiency 23946 | -5/Garrison | Triggered checkpoint 23977 | -5/Garrison | Garrison Relay disabled 24032 | -5/Garrison | Triggered checkpoint 24251 | -5/Garrison | Found Relay Coupler [Proto] 24262 | -5/Garrison | Found Relay Coupler [Proto] 24278 | -5/Garrison | Garrison Relay disabled 24298 | -5/Garrison | Entered Factory 24298 | -4/Factory | Evolved 2 slots: Propulsion x1, Utility x1 24331 | -4/Factory | Identified exit to DSF 24351 | -4/Factory | Identified exit to Garrison 24526 | -4/Factory | Spotted B-86 Titan 24666 | -4/Factory | Fabricated Quantum Reactor? 24967 | -4/Factory | Build established: Hacker-Scout 25155 | -4/Factory | Fabricated Gravmag Array (x1) 25219 | -4/Factory | Fabricated Rnf. Quantum Reactor? 25335 | -4/Factory | Found Prototype Slashing Weapon 25335 | -4/Factory | Identified Nanosword 25571 | -4/Factory | Crushed by falling debris 25577 | -4/Factory | Identified exit to Research 25577 | -4/Factory | Discovered exit to Research (range 19) 25848 | -4/Factory | Identified exit to Upper Caves 25848 | -4/Factory | Discovered exit to Upper Caves (range 7) 25904 | -4/Factory | Fabricated Adv. Force Field (x2) 25944 | -4/Factory | Build established: Hacker-Ninja 26247 | -4/Factory | Discovered exit to Research (range 18) 26462 | -4/Factory | Discovered exit to Upper Caves (range 22) 26634 | -4/Factory | Repaired Cld. Aerolev Unit 26674 | -4/Factory | Discovered exit to Research (range 10) 26793 | -4/Factory | Repaired Graviton Reactor 26844 | -4/Factory | Repaired Gravmag Array 27241 | -4/Factory | Entered Upper Caves 27246 | -4/Upper Caves | Spotted B-86 Titan 27294 | -4/Upper Caves | Learned Research terminal intel 27937 | -4/Upper Caves | Identified exit to Upper Caves 27937 | -4/Upper Caves | Discovered exit to Upper Caves (range 10) 27964 | -4/Upper Caves | Attracted the attention of an 0b10 checkpoint 28037 | -4/Upper Caves | Attracted the attention of an 0b10 outpost 28065 | -4/Upper Caves | Destroyed 7 combat bots 28215 | -4/Upper Caves | Entered another Upper Caves area 28243 | -4/Upper Caves | Discovered exit to Research (range 4) 28497 | -4/Upper Caves | Build established: Hacker-Scout 28571 | -4/Upper Caves | Identified exit to Warlord 28571 | -4/Upper Caves | Discovered exit to Warlord (range 8) 28794 | -4/Upper Caves | Attracted the attention of an 0b10 checkpoint 28822 | -4/Upper Caves | Build established: Hacker-Sprinter 28877 | -4/Upper Caves | Entered Research 28877 | -3/Research | Evolved 2 slots: Utility x2 28878 | -3/Research | Identified exit to Armory 28879 | -3/Research | Loaded intel: 24 terminal locations 29017 | -3/Research | Found Powered Armor 29026 | -3/Research | Spotted B-86 Titan 29061 | -3/Research | Found Adv. Kinecellerator 29148 | -3/Research | Found Powered Armor 29155 | -3/Research | Found Prototype Processor 29155 | -3/Research | Identified Exp. Signal Interpreter 29215 | -3/Research | Build established: Hacker-Mutant 29287 | -3/Research | Found Exp. Targeting Computer 29414 | -3/Research | Identified exit to Testing 29565 | -3/Research | Repaired Nanosword 29630 | -3/Research | Found Prototype Protection 29632 | -3/Research | Identified Centrium Heavy Armor Plating 29732 | -3/Research | Identified exit to Research 29732 | -3/Research | Discovered exit to Research (range 5) 29748 | -3/Research | Destroyed 7 combat bots 29812 | -3/Research | Found Prototype Launcher 29812 | -3/Research | Identified Com. Tesla Bomb Launcher 29852 | -3/Research | Found Powered Armor 30023 | -3/Research | Found Prototype Device 30023 | -3/Research | Identified Exp. EM Disruption Field 30390 | -3/Research | Discovered exit to Research (range 20) 30502 | -3/Research | Found Prototype Device 30502 | -3/Research | Identified Exp. Shield Generator 30584 | -3/Research | Fabricated H-77 Assassin? 30649 | -3/Research | Spotted B-86 Titan 30690 | -3/Research | Garrison activated, responded to threat 30752 | -3/Research | Found Prototype Launcher 30753 | -3/Research | Identified Hellfire Missile Launcher 31127 | -3/Research | Repaired Adv. Force Field 31205 | -3/Research | Destroyed 8 combat bots 31221 | -3/Research | Spotted B-86 Titan 31281 | -3/Research | Repaired Gravmag Array 31327 | -3/Research | Repaired Cld. Gravmag System 31439 | -3/Research | Found Prototype Device 31439 | -3/Research | Identified Exp. Focal Shield 31627 | -3/Research | First assault squad dispatched 31677 | -3/Research | Found Enh. Force Lance 32553 | -3/Research | Build established: Hacker-Ninja 32636 | -3/Research | Repaired Powered Armor 32700 | -3/Research | Repaired Lrn. Sensor Array? 33197 | -3/Research | Entered Testing 33332 | -3/Testing | Found Prototype Energy Cannon 33332 | -3/Testing | Identified Hpw. Disruptor Cannon 33837 | -3/Testing | Found Prototype Energy Cannon 33837 | -3/Testing | Identified Imp. Potential Cannon 33985 | -3/Testing | Found Prototype Energy Gun 33985 | -3/Testing | Identified Tachyon Dispersion Ray 34094 | -3/Testing | Found Prototype Hackware 34094 | -3/Testing | Identified Exp. System Shield 34106 | -3/Testing | Spotted Striker 34473 | -3/Testing | Found Prototype Protection 34473 | -3/Testing | Identified Hvy. Regenerative Plating 34475 | -3/Testing | Found Med. Regenerative Plating 34478 | -3/Testing | Found Prototype Protection 34478 | -3/Testing | Identified SHELL Armor 34491 | -3/Testing | Found Med. Regenerative Plating 34909 | -3/Testing | Discovered exit to Research (range 15) 35197 | -3/Testing | Scanned by Researcher 35374 | -3/Testing | Spotted Striker 35718 | -3/Testing | Found Prototype Device 35718 | -3/Testing | Identified AEGIS Remote Shield 35727 | -3/Testing | Identified exit to Garrison 35729 | -3/Testing | Entered Garrison 35739 | -3/Garrison | Expanded RIF knowledge: Crosswire 35755 | -3/Garrison | Discovered exit to Research (range 97) 35755 | -3/Garrison | Discovered exit to Research (range 70) 35755 | -3/Garrison | Discovered exit to Research (range 81) 35761 | -3/Garrison | Spotted B-90 Cyclops 35780 | -3/Garrison | Garrison Relay disabled 35818 | -3/Garrison | Spotted B-86 Titan 35825 | -3/Garrison | Destroyed B-86 Titan 35864 | -3/Garrison | Triggered checkpoint 36008 | -3/Garrison | Found Adv. Powered Armor 36010 | -3/Garrison | Found Adv. Powered Armor 36014 | -3/Garrison | Found Adv. Powered Armor 36018 | -3/Garrison | Found Adv. Force Booster 36049 | -3/Garrison | Entered Research 36049 | -2/Research | Evolved 2 slots: Utility x2 36421 | -2/Research | Repaired Graviton Reactor 36973 | -2/Research | Found Prototype Slashing Weapon 36991 | -2/Research | Identified Molecular Scythe 37004 | -2/Research | Found Prototype Slashing Weapon 37014 | -2/Research | Identified Centrium Greatsword 37111 | -2/Research | Identified exit to Access 37111 | -2/Research | Discovered exit to Access (range 8) 37281 | -2/Research | Build established: Scavenger-Ninja 37293 | -2/Research | Spotted B-90 Cyclops 37306 | -2/Research | Discovered exit to Access (range 13) 37505 | -2/Research | Found Nanosword 37537 | -2/Research | Fabricated Adv. Gravity Neutralizer? 37594 | -2/Research | Identified exit to Quarantine 37794 | -2/Research | Entered Quarantine 37861 | -2/Quarantine | Found Alien Impact Weapon 37861 | -2/Quarantine | Identified Core Stripper 37878 | -2/Quarantine | Discovered exit to Access (range 8) 38145 | -2/Quarantine | Destroyed 7 combat bots 38320 | -2/Quarantine | Found Alien Energy Cannon 38320 | -2/Quarantine | Identified Core Cannon 38386 | -2/Quarantine | Found Alien Artifact 38404 | -2/Quarantine | Found Alien Artifact 38533 | -2/Quarantine | Found Alien Artifact 38656 | -2/Quarantine | Garrison activated, responded to threat 38787 | -2/Quarantine | Cryocooling Duct disabled 38802 | -2/Quarantine | Ambient heat levels rising (+20) 38802 | -2/Quarantine | Non-combat units ordered to evacuate 38928 | -2/Quarantine | Found Alien Artifact 38928 | -2/Quarantine | Identified Core Reset Matrix 38928 | -2/Quarantine | Identified Hpw. Transdimensional Reconstructor 38928 | -2/Quarantine | Identified Dimensional Node Initializer 38928 | -2/Quarantine | Used Core Reset Matrix 38932 | -2/Quarantine | Detected hypermatrix surge 38932 | -2/Quarantine | Sensed 9 artifacts in vicinity 38998 | -2/Quarantine | Spotted Fortress 39022 | -2/Quarantine | Identified exit to Section 7 39022 | -2/Quarantine | Discovered exit to Section 7 (range 6) 39024 | -2/Quarantine | Entered Section 7 39025 | -2/Section 7 | Sensed 19 artifacts in vicinity 39106 | -2/Section 7 | Found Integrated Mediator 39106 | -2/Section 7 | Installed Integrated Mediator, increased core attachment efficiency. 39385 | -2/Section 7 | Found Prototype Device 39385 | -2/Section 7 | Identified Exp. Shock Absorption System 39388 | -2/Section 7 | Destroyed 9 combat bots 40204 | -2/Section 7 | Found Spacefold Activator 40507 | -2/Section 7 | Found Prototype Launcher 40507 | -2/Section 7 | Identified Com. Tesla Bomb Launcher 40781 | -2/Section 7 | Spotted B-90 Cyclops 40991 | -2/Section 7 | Discovered exit to Access (range 5) 41129 | -2/Section 7 | Initialized slip node 41194 | -2/Section 7 | Spotted S7 Guard 41251 | -2/Section 7 | Destroyed S7 Guard 41352 | -2/Section 7 | Found Prototype Device 41353 | -2/Section 7 | Identified Exp. Actuator Array 41398 | -2/Section 7 | Repaired Lrn. Sensor Array 41423 | -2/Section 7 | Found Core Physics Calibrator 41437 | -2/Section 7 | Spotted Executioner 41437 | -2/Section 7 | Spotted Executioner 41658 | -2/Section 7 | Spotted B-99 Colossus 41690 | -2/Section 7 | Found Integrity Redistributor 41691 | -2/Section 7 | Used Integrity Redistributor, redistributed integrity from core (-181) 41707 | -2/Section 7 | Found LRC Boosters 41707 | -2/Section 7 | Installed LRC Boosters, increased mass support (+10) 41712 | -2/Section 7 | Found LRC Storage 41712 | -2/Section 7 | Installed LRC Storage, increased inventory capacity (+2) 41755 | -2/Section 7 | Spotted Executioner 41763 | -2/Section 7 | Spotted Striker 41763 | -2/Section 7 | Spotted Striker 41801 | -2/Section 7 | Found Transdimensional Reconstructor 41803 | -2/Section 7 | Found Transdimensional Reconstructor 41854 | -2/Section 7 | Destroyed Executioner 41874 | -2/Section 7 | Destroyed Executioner 41879 | -2/Section 7 | Spotted Executioner 41976 | -2/Section 7 | Destroyed Striker 41976 | -2/Section 7 | Spotted Striker 41984 | -2/Section 7 | Destroyed Striker 42020 | -2/Section 7 | Found Sigix Shearcannon 42126 | -2/Section 7 | Build established: Alien-Mutant 42182 | -2/Section 7 | Found Sigix Sheargun 42184 | -2/Section 7 | Found Sigix Sheargun 42387 | -2/Section 7 | Integrated with Sigix Exoskeleton 42564 | -2/Section 7 | Warped through subspace to slip node 42580 | -2/Section 7 | Entered Access 42580 | -1/Access | Evolved 2 slots: Utility x2 42585 | -1/Access | Emitted hypermatrix ping 42590 | -1/Access | Assembled emerged from beneath the floor 42644 | -1/Access | Build established: Alien-Sigix 42705 | -1/Access | Assembled emerged from beneath the floor 42721 | -1/Access | Assembled emerged from beneath the floor 42809 | -1/Access | Assembled emerged from beneath the floor 42820 | -1/Access | Found Prototype Device 42821 | -1/Access | Identified System Purifier 42828 | -1/Access | Identified exit to Command 42828 | -1/Access | Discovered exit to Command (range 16) 42829 | -1/Access | Assembled emerged from beneath the floor 42871 | -1/Access | Entered Command 42876 | -1/Command | Emitted hypermatrix ping 42881 | -1/Command | Assembled emerged from beneath the floor 42887 | -1/Command | Assembled emerged from beneath the floor 42982 | -1/Command | Identified exit to Surface 42982 | -1/Command | Discovered exit to Surface (range 18) 43049 | -1/Command | Spotted B-99 Colossus 43110 | -1/Command | Destroyed Combat Programmer 43111 | -1/Command | Spotted M Guard 43121 | -1/Command | First assault squad dispatched 43139 | -1/Command | Spotted Combat Programmer 43140 | -1/Command | Destroyed Combat Programmer 43146 | -1/Command | Spotted M Guard 43163 | -1/Command | Destroyed M Guard 43186 | -1/Command | Destroyed M Guard 43186 | -1/Command | All MAIN.C guards destroyed 43225 | -1/Command | Found Prototype Reactor 43226 | -1/Command | Identified Zero-point Reactor 43230 | -1/Command | Found Prototype Launcher 43231 | -1/Command | Identified Adv. Micro-nuke Launcher 43238 | -1/Command | Destroyed 9 combat bots 43281 | -1/Command | Met MAIN.C 43282 | -1/Command | 0b10 Conduit disabled 43294 | -1/Command | MAIN.C's shell transforms into a squad of autonomous robots 43294 | -1/Command | Destroyed MAIN.C Shell 43294 | -1/Command | Spotted M Shell/Def 43294 | -1/Command | Spotted M Shell/Atk 43294 | -1/Command | Spotted M Shell/Def 43294 | -1/Command | Spotted M Shell/Atk 43294 | -1/Command | Spotted M Shell/Atk 43294 | -1/Command | Spotted M Shell/Def 43294 | -1/Command | Spotted M Shell/Atk 43294 | -1/Command | Spotted M Shell/Def 43296 | -1/Command | MAIN.C activated Command garrisons 43298 | -1/Command | Destroyed M Shell/Def 43306 | -1/Command | Destroyed M Shell/Def 43308 | -1/Command | Destroyed M Shell/Def 43308 | -1/Command | Destroyed M Shell/Atk 43310 | -1/Command | Destroyed M Shell/Def 43313 | -1/Command | Destroyed M Shell/Atk 43325 | -1/Command | Destroyed M Shell/Atk 43339 | -1/Command | Destroyed MAIN.C 43341 | -1/Command | Destroyed M Shell/Atk 43364 | -1/Command | Found Prototype Processor 43365 | -1/Command | Identified Exp. Targeting Computer 43372 | -1/Command | Found Prototype Device 43373 | -1/Command | Identified Beam Splitter 43375 | -1/Command | Discovered exit to Surface (range 43) 43375 | -1/Command | Discovered exit to Surface (range 81) 43375 | -1/Command | Extracted map data and part IDs from MAIN.C's data core 43379 | -1/Command | Destroyed 12 combat bots 43453 | -1/Command | Found Exp. System Purifier 43455 | -1/Command | Found Spectral Analyzer 43516 | -1/Command | Warped through subspace to slip node 43516 | -1/Command | Identified exit to Access_0 43516 | -1/Command | Discovered exit to Access_0 (range 4) 43519 | -1/Command | Entered Access_0 43520 | -1/Access_0 | Sensed 2 artifacts in vicinity 43520 | -1/Access_0 | Met Architect 43526 | -1/Access_0 | Subspace Access Node disabled 43546 | -1/Access_0 | Architect warped through subspace 43551 | -1/Access_0 | Destroyed A8 43575 | -1/Access_0 | Found Exp. Armor Integrity Analyzer 43609 | -1/Access_0 | Sigix Exoskeleton integrity reduced to 80% 43631 | -1/Access_0 | A6 warped into view 43648 | -1/Access_0 | Architect warped through subspace 43653 | -1/Access_0 | Destroyed A6 43686 | -1/Access_0 | Subspace Access Node disabled 43698 | -1/Access_0 | Subspace Access Node disabled 43705 | -1/Access_0 | Architect warped through subspace 43715 | -1/Access_0 | A5 warped into view 43728 | -1/Access_0 | Destroyed A5 43743 | -1/Access_0 | Subspace Access Node disabled 43806 | -1/Access_0 | Destroyed A2 43836 | -1/Access_0 | Extracted Singularity Gate Test 138-C access codes from A2's data core 43855 | -1/Access_0 | Started Test 138-B, establishing a local singularity 43855 | -1/Access_0 | Started Test 138-C, cascade imminent 43855 | *** | Destroyed Tau Ceti IV! Last Messages --------------- 43855_ Penetrated by Quantum Shear. 43855_ Connecting with Gate Controls... >>Gate Test 138-A Running Singularity Gate diagnostics... All systems nominal. >>Gate Test 138-B Preparing Singularity Gate activation... Stable singularity established. >>Gate Test 138-C Initiating Test 138-C... Warning: Experimental formulas incomplete. Potential effects include instability. Repeat command to confirm test. >>Gate Test 138-C Initiating Test 138-C... Applying incomplete calculations.... INSTABILITY DETECTED, CASCADE IMMINENT. [Achievement: Tester] [Achievement: Stardust] [Achievement: Overachiever] Map ----- +----------------------------------------------------+ | ????????????????????????????????????????????????? | | ????????????????????????????????????????????????? | | ????????????????????????????????????????????????? | | ????????????????????????????????????????????????? | | ????????????????????????????????????????????????? | | ????????????????????????????????????????????????? | | ????????????????????????????????????????????????? | | ????????????????????????????????????????????????? | | ??????????????????????? ????????????????????????? | | ??????????????????# #####???????????????????? | | ???????????????#### ########????????????????? | | ??????????????##### #########???????????????? | | ????????????##""""" """""######?????????????? | | ???????????####"""" """"########????????????? | | ??????????#####" "######## ???????????? | | ?????????#####"" ""####### ??????????? | | ?????????#####"" ""####### ??????????? | | ????????#######" "###### ?????????# | | ???????########" "####### ??????### | | ???????########" "####### ##?????#### | | ??????#########" "## ## ###????##### | | ??????#########" "### ####?####### | | ??????########"" ""## ############ | | ?????#########"" ""## ######## | | ?????##########" "#### ######### | | ????###########"""" XA""#### ########## | | ???###########""""" """""### ########### | | ???################ ######## ############ | | ???################ ####### ############ | | ??################# #### ############# | | ??################# ##### ################ | | ??################# ###### ################ | | ??################# ##### ################ | | ??################# ##### ############## | | ?################## ##### ############## | | ??################# ### ########"#### | | ??################# ### #### "" """ | | ??################# 0 ##### " | | ??################# ### | | ??################# ## ## | | ???################ #### | | ???################### #### "" " | | ???################### ### #####"#### | | ????################## #### ## ########### | | ?????################# #### #### ############# | | ?????################ #### ################### | | ?????################# # # ################### | | ?????################# ################## | | ??????############### # ################# | | ??????################ ########### | +----------------------------------------------------+ Best States ------------- Heat Dissipation 127 Coolant Potential 100 Energy Generation 66 Energy Capacity 1200 Matter Stores 780 Matter Capacity 800 Sight Range 24 Robot Scan Range 18 Terrain Scan Range 14 Terrain Scan Density 10 ECM Strength 2 Jamming Range 16 Power Amplification 40 Additional Mass Support 25 EM Shielding 4 Corruption Block 15 Armor Coverage 900 Resistance: KI 85 Resistance: TH 85 Resistance: EX 85 Resistance: EM 100 Resistance: I 85 Resistance: S 85 Resistance: P 85 Core Shielding 20 Power Shielding 90 Propulsion Shielding 66 Weapon Shielding 66 Point Defense Rating 240 Melee Speed Boost 20 Evasion (%) 70 Targeting Accuracy 12 Melee Accuracy 8 Launcher Accuracy 40 Target Analysis 8 Core Analysis 8 Armor Integrity Analysis 50 Matter Filtering 30 Kinecelleration 50 Force Boost 40 Offensive Hacking 36 Defensive Hacking 20 Relay Coupler Types 4 Relay Coupler Value 123 Item Schematics ----------------- Cmb. Linear Gravjet | -2/Section 7 | Scanalyzed Adv. Powered Armor | -2/Section 7 | Scanalyzed Enh. Nova Cannon | -2/Section 7 | Scanalyzed Hellfire Missile Launcher | -2/Section 7 | Scanalyzed Robot Schematics ------------------ None Fabricated ------------ Imp. Propulsion Shielding | x2 | -7/Factory Adv. Sensor Array | x1 | -7/Factory Gravmag Array | x1 | -6/Factory Transport Network Coupler | x2 | -6/Factory Rocket Array | x1 | -6/Factory Adv. Shield Generator | x2 | -6/Factory Quantum Reactor | x2 | -4/Factory | Preloaded Gravmag Array | x1 | -4/Factory Rnf. Quantum Reactor | x2 | -4/Factory | Preloaded Adv. Force Field | x2 | -4/Factory H-77 Assassin | x2 | -3/Research | Preloaded Adv. Gravity Neutralizer | x1 | -2/Research Alien Tech Used ----------------- Core Stripper Core Cannon Core Reset Matrix Integrated Mediator Dimensional Node Initializer Integrity Redistributor LRC Boosters LRC Storage Sigix Shearcannon Sigix Exoskeleton Sigix Sheargun Transdimensional Reconstructor Spacefold Activator Core Physics Calibrator Achievements -------------- Assassin Assimilation Complete Batter Up Beloved Brute Force Can't Touch This Corridor Of Doom Gladiator Infiltrator No Explosion For You Overachiever Pwned Short-term Sacrifices Stardust Tester Watch This! Whoosh! void main() Challenges ------------ None Game ------ Seed SeismicDamperReconstructor Manual? 0 Play Time 26:28:57 Cumulative 202.9 hours Start 2023.06.07 @ 22:25:04 End 2023.06.17 @ 02:24:11 Sessions 75 Manual Loads 0 Difficulty Explorer Special Mode None Game No. 28 Rogue 25 Adventurer 0 Explorer 3 Win Type 5 Total 4 Types 0/0/0/3/0/1/0/0/0 Lore% 38 Gallery% 62 Achievement% 56 Wizard Run 0 Options --------- ASCII 1 Keyboard 0 Movement Mouse Keybinds 0 Fullscreen 1 Font 18/SmallcapsGlow Map View 70x50 Tactical HUD 1 Map Filters NONE Filters NONE Steam X RUN: 2fc955fc-ae27-490b-a580-5b5bbdf69e23